Cogmind - Beta 13 X1 @@@ ROGUE MODE // 2023.10.13 @ 22:34:07 Player: Terminus Result: Heading to fleet! Performance ------------- Evolutions (9) 4500 Regions Visited (38) 7600 Robots Destroyed (771) 3855 Value Destroyed (37591) 37591 Prototype IDs (287) 5740 Alien Tech Used (12) 2400 Bonus (49254) 49254 TOTAL SCORE: 110940 Bonus ------- Triggered High Security 500 Triggered Max Security 4000 High Alert Combat Kills 12320 Follower Combat Kills 1402 Entered Garrisons 200 Network Hubs Disabled 200 Met Data Miner 300 Met Imprinter 300 Met Zhirov 300 Met R17 at Cetus 500 Used Core Reset Matrix 3000 Scanned by Researcher 500 Integrated Exoskeleton 5000 Destroyed MAIN.C Guards 500 Met MAIN.C 5000 Destroyed MAIN.C Shell 5000 Destroyed MAIN.C 10000 Win 3000 Friendly Fire -2768 Cogmind --------- Core Integrity 813/2100 Matter 300/300 Energy 334/340 System Corruption 0% Temperature Cool (0) Movement Walking (30) Location To Fleet Rendezvous Parts ------- > --- POWER (1) -------- Zero-point Reactor > --- PROPULSION (3) --- Sigix Exoskeleton > --- UTILITY (6) ------ Experimental Targeting Computer Experimental Targeting Computer Experimental Core Analyzer Experimental Weapon Cycler Experimental Phase Shifter AEGIS Remote Shield > --- WEAPON (3) ------- Sigix Sheargun Sigix Sheargun Sigix Sheargun > --- INVENTORY (5) ---- Experimental Energy Well (600) Advanced Particle Accelerator Quantum Capacitor Null Cannon Peak State ------------ > --- POWER ------------ Zero-point Reactor > --- PROPULSION ------- Sigix Exoskeleton > --- UTILITY ---------- Experimental Targeting Computer Experimental Targeting Computer Experimental Core Analyzer Experimental Weapon Cycler Experimental Phase Shifter AEGIS Remote Shield > --- WEAPON ----------- Sigix Sheargun Sigix Sheargun Null Cannon > --- INVENTORY -------- Experimental Energy Well Experimental Energy Well Experimental Targeting Computer Experimental Core Analyzer Sigix Sheargun [Rating: 254] Favorites ----------- Power Improved Deuterium Engine Engine Improved Deuterium Engine Power Core Neutrino Core Reactor Antimatter Reactor Propulsion Light Treads Treads Light Treads Leg Sigix Exoskeleton Wheel Compact Wheel Utility Huge Storage Unit Device Improved Cooling System Storage Huge Storage Unit Processor Experimental Targeting Computer Hackware Advanced Hacking Suite Protection Hardened Medium Armor Plating Weapon Autogun Energy Gun Sigix Sheargun Energy Cannon Advanced Plasma Cannon Ballistic Gun Autogun Launcher Fusion Bomb Launcher Impact Weapon Great Maul Slashing Weapon Segregator Build | -11 -10 -10 -9 -9 -8 -8 -8 -7 -7 -7 -7 -6 -6 -6 -6 -6 -6 -6 -5 -5 -5 -5 -5 -4 -4 -4 -4 -4 -4 -4 -4 -3 -3 -3 -2 -2 -1 -1 ------- Run | Jun Mat Min Mat Min Mat Gar Mat Fac Low Low Dat Pro Fac Was Fac Low Low Zio Pro Fac Upp Upp Zhi Pro Fac Was Fac Ext Cet Arc Hub Res Qua Sec Res Tes Acc Com Slots Evolved 18 | . . . 2 . 2 . . 2 . . . . 2 . . . . . . 2 . . . . 2 . . . . . . 2 . . 2 . 2 . Power 2 | . . . . . . . . . . . . . . . . . . . . . . . . . . . . . . . . 2 . . . . . . Propulsion 1 | . . . . . . . . . . . . . 1 . . . . . . . . . . . . . . . . . . . . . . . . . Utility 10 | . . . 1 . 1 . . 2 . . . . 1 . . . . . . 2 . . . . . . . . . . . . . . 2 . 1 . Weapon 5 | . . . 1 . 1 . . . . . . . . . . . . . . . . . . . 2 . . . . . . . . . . . 1 . Parts Attached 690 | 6 11 1 20 2 22 16 9 40 10 9 4 1 8 13 28 . 4 9 11 41 6 2 8 8 6 7 70 19 23 7 10 33 42 150 1 6 7 20 Power 37 | 1 2 . 2 . 1 . . 2 1 . . . . 1 . . . . 1 1 . . 2 . . 1 1 . 1 . . 2 2 13 . 1 . 2 Engine 9 | 1 2 . 2 . 1 . . 2 1 . . . . . . . . . . . . . . . . . . . . . . . . . . . . . Core 4 | . . . . . . . . . . . . . . . . . . . 1 1 . . 1 . . . 1 . . . . . . . . . . . Reactor 24 | . . . . . . . . . . . . . . 1 . . . . . . . . 1 . . 1 . . 1 . . 2 2 13 . 1 . 2 Propulsion 55 | 2 2 . 3 . 6 4 4 . 2 . . . 2 1 1 . . . 1 3 1 . . 1 2 1 5 1 3 . 2 1 1 6 . . . . Treads 42 | 2 2 . 3 . 6 4 4 . 2 . . . 1 1 . . . . . 1 . . . 1 1 . 2 1 3 . . 1 1 6 . . . . Leg . | . . . . . . . . . . . . . . . . . . . . . . . . . . . . . . . . . . . . . . . Wheel 13 | . . . . . . . . . . . . . 1 . 1 . . . 1 2 1 . . . 1 1 3 . . . 2 . . . . . . . Hover . | . . . . . . . . . . . . . . . . . . . . . . . . . . . . . . . . . . . . . . . Flight . | . . . . . . . . . . . . . . . . . . . . . . . . . . . . . . . . . . . . . . . Utility 413 | 1 5 1 7 2 10 1 . 26 5 2 . 1 6 11 17 . 4 5 8 20 2 1 2 3 2 4 47 17 14 7 8 27 30 96 1 3 6 11 Device 306 | . 2 1 2 2 5 1 . 20 3 1 . 1 3 10 10 . 2 1 4 13 . . 1 2 2 4 36 14 12 5 6 22 25 77 . 3 6 10 Storage 11 | 1 3 . 1 . . . . 1 . . . . . . . . . . . . . . . . . . . 1 . . 1 . . 2 . . . 1 Processor 15 | . . . . . 1 . . 1 . . . . 1 1 1 . . 2 . 1 . . . . . . . . . . . . . 6 1 . . . Hackware 3 | . . . . . . . . 1 . . . . . . . . . . . . . . . . . . 1 . . 1 . . . . . . . . Protection 78 | . . . 4 . 4 . . 3 2 1 . . 2 . 6 . 2 2 4 6 2 1 1 1 . . 10 2 2 1 1 5 5 11 . . . . Artifact . | . . . . . . . . . . . . . . . . . . . . . . . . . . . . . . . . . . . . . . . Weapon 185 | 2 2 . 8 . 5 11 5 12 2 7 4 . . . 10 . . 4 1 17 3 1 4 4 2 1 17 1 5 . . 3 9 35 . 2 1 7 Energy Gun 23 | . . . 1 . . . . . . . . . . . . . . . . . . . . . . . . . 1 . . 1 2 13 . 1 1 3 Energy Cannon 12 | . . . . . . . . . . . . . . . . . . . . 1 1 1 . 1 . . 3 . . . . 1 . . . 1 . 3 Ballistic Gun 125 | 2 2 . 7 . 5 7 4 7 1 4 4 . . . 9 . . 4 1 12 2 . 4 2 2 1 14 1 4 . . 1 6 19 . . . . Ballistic Cannon . | . . . . . . . . . . . . . . . . . . . . . . . . . . . . . . . . . . . . . . . Launcher 8 | . . . . . . . 1 2 . 1 . . . . . . . . . 1 . . . 1 . . . . . . . . . 1 . . . 1 Special Weapon . | . . . . . . . . . . . . . . . . . . . . . . . . . . . . . . . . . . . . . . . Impact Weapon 16 | . . . . . . 4 . 3 1 2 . . . . 1 . . . . 3 . . . . . . . . . . . . 1 1 . . . . Slashing Weapon 1 | . . . . . . . . . . . . . . . . . . . . . . . . . . . . . . . . . . 1 . . . . Piercing Weapon . | . . . . . . . . . . . . . . . . . . . . . . . . . . . . . . . . . . . . . . . Special Melee Weapon . | . . . . . . . . . . . . . . . . . . . . . . . . . . . . . . . . . . . . . . . Unidentified Prototypes 41 | . . . . . . . . 2 . . . . . . 1 . . 2 . 2 . . 2 . . . 3 1 3 . . 1 6 8 . 3 1 6 Parts Lost 86 | . . . 4 . 4 1 3 . . 1 . . . . 2 . . . 2 5 1 1 . 2 1 . 8 1 1 1 1 . 4 43 . . . . Power 9 | . . . . . . . . . . . . . . . . . . . . 1 . . . . . . . . . . . . 1 7 . . . . Propulsion 11 | . . . 1 . . 1 . . . . . . . . . . . . 1 . 1 . . . 1 . . . . . 1 . . 5 . . . . Utility 34 | . . . 1 . 1 . . . . . . . . . . . . . 1 4 . 1 . 1 . . 6 1 . 1 . . 1 16 . . . . Weapon 32 | . . . 2 . 3 . 3 . . 1 . . . . 2 . . . . . . . . 1 . . 2 . 1 . . . 2 15 . . . . Highest Loss Streak 11 | . . . 3 . 2 1 2 . . 1 . . . . 1 . . . 1 4 1 1 . 2 1 . 2 1 1 1 1 . 3 11 . . . . To Critical Strikes 1 | . . . . . . . . . . . . . . . . . . . . . . . . . . . . . . . . . . 1 . . . . Average Slot Usage (%) 93 | . 97 100 99 100 99 100 99 99 100 99 72 99 100 95 92 93 93 90 92 91 87 88 65 88 89 88 93 93 93 93 93 94 93 78 63 63 73 84 Engine 3 | . 13 14 11 11 9 9 9 7 7 7 7 7 6 1 . . . . . . . . . . . . . . . . . . . . . . . . Core 1 | . . . . . . . . . . . . . . . . . . . . 4 5 5 4 5 5 1 3 5 1 . . . . . . . . . Reactor 2 | . . . . . . . . . . . . . . 4 6 6 6 6 5 . . . . . . 3 1 . 3 5 5 14 13 8 9 9 7 7 Treads 10 | . 27 28 22 22 17 18 18 15 15 15 15 15 13 8 6 6 6 6 6 5 5 5 5 10 6 5 5 5 5 5 5 4 4 3 . . . . Wheel 2 | . . . . . . . . . . . . . 6 6 5 6 6 6 5 5 4 5 5 . 3 4 5 5 5 5 4 4 4 1 . . . . Device 10 | . 13 14 11 11 8 9 9 8 7 6 7 6 9 13 7 6 6 6 6 14 11 11 11 11 10 10 13 15 15 18 14 13 13 11 . . 12 23 Storage 6 | . 14 14 11 11 9 9 9 7 7 7 7 7 6 6 6 6 6 6 6 5 5 5 5 5 5 5 5 5 5 5 5 4 4 3 . . . . Processor 13 | . . . . . 7 9 9 15 15 15 15 15 13 20 20 20 20 20 20 17 17 17 17 17 15 15 15 15 15 15 15 14 14 14 27 27 23 23 Hackware 3 | . . . . . . . . 5 7 7 7 7 6 6 6 6 6 6 6 5 5 5 5 5 5 5 5 5 5 4 5 4 4 3 . . . . Protection 5 | . . . 10 11 10 9 9 6 6 7 7 7 9 . 5 6 5 5 5 5 5 5 4 5 5 5 5 4 4 1 5 3 4 3 . . . . Energy Gun 1 | . . . . . . . . . . . . . . . . . . . . . . . . . . . . . . . . . . 3 18 18 23 21 Ballistic Gun 26 | . 27 28 32 33 35 35 35 29 29 28 3 30 26 26 25 26 26 23 26 22 21 18 1 19 31 31 30 30 30 31 31 27 26 18 . . . . Naked Turns . | . . . . . . . . . . . . . . . . . . . . . . . . . . . . . . . . . . . . . . . Heaviest Build 204 | 14 32 32 104 104 112 113 114 115 113 119 112 112 120 112 122 121 121 121 121 129 134 133 133 133 138 140 153 158 159 158 158 201 204 198 32 32 47 64 Greatest Support 100 | 40 40 40 40 40 43 43 44 44 44 42 42 42 12 12 70 12 70 12 70 70 70 70 70 97 97 70 70 70 16 16 16 16 60 100 70 70 70 70 Greatest Overweight (x) 13 | . 1 . 2 2 2 4 2 2 2 2 2 2 9 9 10 10 10 10 10 12 12 1 1 13 8 8 9 9 9 9 9 12 12 12 . . . . Average Overweight (x) 4 | . . . 1 2 2 2 2 2 2 2 2 2 9 8 8 10 8 9 9 7 6 1 1 1 5 6 8 8 9 9 9 11 11 4 . . . . Largest Inventory Capacity 25 | 8 25 15 25 25 25 25 25 25 25 25 25 25 25 25 25 25 25 25 25 25 25 25 25 25 25 25 25 25 25 25 25 25 25 25 5 5 5 5 Average Capacity 23 | 6 13 15 22 25 25 25 25 25 25 25 25 25 25 25 25 25 25 25 25 25 25 25 25 25 25 25 25 25 25 25 25 25 25 23 5 5 5 5 Most Carried 25 | 2 12 13 25 25 25 25 25 25 25 25 24 24 25 25 25 25 25 25 25 25 25 25 25 24 23 25 25 25 25 25 25 25 25 25 3 3 4 5 Average Carried 22 | 1 6 12 20 24 24 24 24 24 24 24 24 23 24 24 24 25 25 25 24 24 24 23 24 21 21 23 24 24 24 24 24 24 24 17 2 2 3 4 Final Capacity 25 | 8 15 15 25 25 25 25 25 25 25 25 25 25 25 25 25 25 25 25 25 25 25 25 25 25 25 25 25 25 25 25 25 25 25 5 5 5 5 5 Final Carried 25 | 2 12 13 25 25 25 25 25 25 25 24 24 24 25 25 25 25 25 25 25 25 25 23 24 21 21 25 25 25 25 25 25 25 25 3 2 3 4 5 Class Distribution -------------------- 21% | Scavenger-Executioner 18% | Scavenger-Gunner 17% | Gunner 12% | Skirmisher 7% | Mutant 7% | Scavenger-Tank 4% | Scavenger-Mutant 4% | Alien-Sigix Dominant Class ---------------- Mutant | -10/Materials Mutant | -10/Mines Scavenger-Tank | -9/Materials Scavenger-Tank | -9/Mines Scavenger-Gunner | -8/Materials Gunner | -8/Garrison Scavenger-Gunner | -8/Materials Skirmisher | -7/Factory Skirmisher | -7/Lower Caves Skirmisher | -7/Lower Caves Mutant | -7/Data Miner Skirmisher | -6/Proximity Caves Skirmisher | -6/Factory Scavenger-Gunner | -6/Waste Scavenger-Gunner | -6/Factory Gunner | -6/Lower Caves Gunner | -6/Lower Caves Gunner | -6/Zion Gunner | -5/Proximity Caves Scavenger-Gunner | -5/Factory Scavenger-Gunner | -5/Upper Caves Scavenger-Mutant | -5/Upper Caves Scavenger-Mutant | -5/Zhirov Scavenger-Gunner | -4/Proximity Caves Scavenger-Executioner | -4/Factory Scavenger-Executioner | -4/Waste Scavenger-Executioner | -4/Factory Scavenger-Executioner | -4/Extension Scavenger-Executioner | -4/Cetus Scavenger-Executioner | -4/Archives Scavenger-Executioner | -4/Hub_04(d) Scavenger-Executioner | -3/Research Scavenger-Executioner | -3/Quarantine Alien-Executioner | -3/Section 7 Alien-Sigix | -2/Research Alien-Sigix | -2/Testing Alien-Sigix | -1/Access Alien-Sigix | -1/Command Resources | -11 -10 -10 -9 -9 -8 -8 -8 -7 -7 -7 -7 -6 -6 -6 -6 -6 -6 -6 -5 -5 -5 -5 -5 -4 -4 -4 -4 -4 -4 -4 -4 -3 -3 -3 -2 -2 -1 -1 ----------- Run | Jun Mat Min Mat Min Mat Gar Mat Fac Low Low Dat Pro Fac Was Fac Low Low Zio Pro Fac Upp Upp Zhi Pro Fac Was Fac Ext Cet Arc Hub Res Qua Sec Res Tes Acc Com Matter Collected 31099 | 234 674 272 1250 171 2290 1197 748 1644 346 293 . 287 232 760 1070 70 512 40 726 1312 448 11 250 675 467 488 3120 1255 993 497 691 1675 1299 4771 . 35 28 268 Remotely 10182 | . . . . . 95 . . 652 . . . . 13 456 235 . 347 . . 531 . . . 120 194 312 1925 552 421 . 92 829 798 2610 . . . . Salvage Created 46993 | . 701 242 1526 382 2929 1026 1182 1777 72 185 . 19 300 815 1605 . 75 . 1129 1343 411 75 . 940 719 1615 4474 2180 1426 683 1966 1518 1309 7690 . 140 1518 5021 Parts 2136 | . 39 27 102 18 181 74 66 93 6 9 . 6 7 6 77 . 4 . 46 73 24 7 . 36 25 28 204 78 61 42 98 74 66 307 . 11 64 177 Haulers Intercepted 34 | . 1 . 5 . 5 . 4 2 . . . . 1 . 2 . . . . 1 . . . . . . 2 . . . 4 1 . 3 . . 3 . Recyclers Shooed 28 | . 2 . 1 1 6 . 1 2 . . . . . . 2 . . . 1 7 . . . . 1 . 1 1 . . . . . . . . . 2 Parts Field Recycled . | . . . . . . . . . . . . . . . . . . . . . . . . . . . . . . . . . . . . . . . Retrieved Matter . | . . . . . . . . . . . . . . . . . . . . . . . . . . . . . . . . . . . . . . . Parts Self-Destructed 183 | . . . . . . . . . 3 8 . 9 . . . . 4 . 93 . 23 7 . 36 . . . . . . . . . . . . . . Prevented . | . . . . . . . . . . . . . . . . . . . . . . . . . . . . . . . . . . . . . . . Kills | -11 -10 -10 -9 -9 -8 -8 -8 -7 -7 -7 -7 -6 -6 -6 -6 -6 -6 -6 -5 -5 -5 -5 -5 -4 -4 -4 -4 -4 -4 -4 -4 -3 -3 -3 -2 -2 -1 -1 ------- Run | Jun Mat Min Mat Min Mat Gar Mat Fac Low Low Dat Pro Fac Was Fac Low Low Zio Pro Fac Upp Upp Zhi Pro Fac Was Fac Ext Cet Arc Hub Res Qua Sec Res Tes Acc Com Combat Hostiles Destroyed 556 | . 12 9 24 4 35 31 18 22 2 8 . 2 3 3 14 . 3 . 13 14 9 1 . 19 4 6 48 25 20 4 10 19 15 93 . 2 14 50 Melee 2 | . . . . . . . . . . . . . . . . . . . . . . . . . . . . . . . . . . 1 . 1 . . Guns 512 | . 12 9 24 4 35 31 16 17 2 5 . 2 3 3 14 . 3 . 13 14 9 1 . 11 4 6 46 25 20 4 10 19 14 86 . 1 14 35 Cannons 2 | . . . . . . . . . . . . . . . . . . . . . . . . 2 . . . . . . . . . . . . . . AOE 36 | . . . . . . . 2 5 . 3 . . . . . . . . . . . . . 6 . . . . . . . . . 5 . . . 15 Classes Destroyed 30 | . 6 2 3 . 3 1 . 1 1 . . 1 . 1 . . . . . 2 . . . 1 . . . . 1 . . 1 1 3 . . 1 1 Worker 33 | . 1 . 1 1 5 . . 8 . . . . . . 3 . . . . 1 . . . . . . 4 . . . 5 . . 2 . 1 . 1 Builder 21 | . . 1 2 . 4 . 1 . . . . . . . 3 . . . . 1 . . . . 1 . 3 . . . 4 . . . . . 1 . Tunneler 10 | . 1 1 . 1 2 . . 1 . . . . . . 2 . . . . . . . . . . . 1 . . . . 1 . . . . . . Hauler 34 | . 1 . 5 . 5 . 4 2 . . . . 1 . 2 . . . . 1 . . . . . . 2 . . . 4 1 . 3 . . 3 . Recycler 51 | . 1 . 4 3 8 . 2 9 . . . . . . 2 . . . 2 2 . . . . 3 . 5 2 . . 4 . . 4 . . . . Carrier 1 | . . . . . . . . . . . . . . . . . . . . . . . . . . . . . 1 . . . . . . . . . Mechanic 6 | . . . 1 . . . . . . . . . . . . . . . . 1 . . . . . . . . . . . . . 1 . . . 3 Operator 18 | . . . . . 3 . . 1 . . . . . . 1 . . . . . . . . . . . . . . 9 1 . . 1 . . . 2 Drone 2 | . . . . . . . . . . . . 2 . . . . . . . . . . . . . . . . . . . . . . . . . . Watcher 48 | . 1 . 5 . 5 2 3 4 . . . . . . 1 . . . 2 2 . . . . 1 . 3 3 2 . 4 2 3 3 . . 1 1 Swarmer 93 | . . 6 10 4 4 20 5 6 . 7 . . . . . . 3 . 2 . 4 . . 6 . . 5 3 3 . . . . 5 . . . . Saboteur 7 | . . . . . . . . . . . . . . . . . . . . . . . . . . . . . . . . 1 . 3 . 1 1 1 Grunt 192 | . 12 3 5 . 16 2 9 9 . 1 . . 3 . 8 . . . 9 3 2 . . 9 . . 18 9 6 . . 8 2 45 . . 6 7 Brawler 10 | . . . 1 . . . . . . . . . . . . . . . . . 1 . . 1 . . . 1 1 . . . . 3 . . . 2 Duelist 14 | . . . . . . . . . . . . . . . . . . . . . . . . 1 . . 1 1 . . . 1 . 4 . . 1 5 Protector 7 | . . . . . . . . . . . . . . . . . . . . 1 . . . . . . . . . . . . . 3 . . . 3 Researcher 1 | . . . . . . . . . . . . . . . . . . . . . . . . . . . . . . . . . . 1 . . . . Sentry 62 | . . . 8 . 5 8 3 . . . . . . . 4 . . . 3 3 1 . . 1 . . 7 3 . 4 4 2 . 4 . . 1 1 Specialist 8 | . . . . . 8 . . . . . . . . . . . . . . . . . . . . . . . . . . . . . . . . . Hunter 33 | . . . . . 2 . 1 2 1 . . . . . . . . . . 2 . . . . 2 . 6 7 . . 2 . . 4 . . 2 2 Programmer 73 | . . . . . . . . 5 . . . . . . 2 . . . . 4 1 . . . 2 . 10 . 2 . 4 7 12 16 . . 3 5 Heavy 1 | . . . . . . . . . . . . . . . . . . . . 1 . . . . . . . . . . . . . . . . . . Behemoth 6 | . . . . . . 1 . . . . . . . . . . . . . . . 1 . 1 . . 1 1 . . . . . 1 . . . . Compactor 9 | . . . . . . . . . . . . . . 3 . . . . . . . . . . . 6 . . . . . . . . . . . . Cetus Guard 8 | . . . . . . . . . . . . . . . . . . . . . . . . . . . . . 8 . . . . . . . . . S7 Guard 1 | . . . . . . . . . . . . . . . . . . . . . . . . . . . . . . . . . . 1 . . . . M Guard 2 | . . . . . . . . . . . . . . . . . . . . . . . . . . . . . . . . . . . . . . 2 M Shell/Atk 4 | . . . . . . . . . . . . . . . . . . . . . . . . . . . . . . . . . . . . . . 4 M Shell/Def 3 | . . . . . . . . . . . . . . . . . . . . . . . . . . . . . . . . . . . . . . 3 Enhanced Grunt 1 | . . . . . . . . . . . . . . . 1 . . . . . . . . . . . . . . . . . . . . . . . Combat Programmer 2 | . . . . . . . . . . . . . . . . . . . . . . . . . . . . . . . . . . . . . . 2 Investigator 1 | . . . . . . . . . . . . . . . . . . . . . . . . . . . . . . . . . . . . . . 1 Striker 5 | . . . . . . . . . . . . . . . . . . . . . . . . . . . . . . . . . . . . . . 5 Executioner 8 | . . . . . . . . . . . . . . . . . . . . . . . . . . . . . . . . . . 2 . . . 6 Alpha 7 2 | . . . . . . . . . . . . . . . . . . . . . . . . . . . . . . . . . . 2 . . . . Fortress 1 | . . . . . . . . . . . . . . . . . . . . . . . . . . . . . . . . . 1 . . . . . Protovariant Y 1 | . . . . . . . . . . . . . . . . . . . . . . . . . . . . . . . . . . . . 1 . . Thief 1 | . . . . . . . . . 1 . . . . . . . . . . . . . . . . . . . . . . . . . . . . . Assembled 1 | . . . . . . . . . . . . . . . . . . . . . . . . . . . . . . . . . . . . . 1 . Savage 1 | . . . . . . . . . . . . . . . . . . . . . . . . . . . . 1 . . . . . . . . . . Best Kill Streak 20 | . 3 4 6 4 10 7 4 7 1 4 . 2 3 2 6 . 3 . 3 5 3 1 . 7 3 4 14 8 5 4 10 4 3 15 . 2 10 20 Combat Bots Only 17 | . 2 3 4 4 4 7 3 3 1 4 . 2 3 2 4 . 3 . 3 4 3 1 . 7 2 4 7 8 4 2 4 3 3 15 . 1 8 17 Max Kills in Single Turn 7 | . 1 2 2 3 3 2 2 3 1 2 . 1 1 1 2 . 2 . 2 2 2 1 . 4 1 1 4 3 3 1 7 2 1 3 . 1 3 4 Gunslinging 3 | . . 1 1 2 1 1 . 1 . 1 . . . . . . 1 . 1 . 1 . . 1 . . 3 1 2 . . . . 1 . . 2 1 Exploded 4 | . . . . . . . 2 3 . 1 . . . . . . . . . . . . . 4 . . . . . . . . . 3 . . . 3 Melee 1 | . . . . . . . . . . . . . . . . . . . . . . . . . . . . . . . . . . 1 . 1 . . Uniques/NPCs Destroyed 4 | . . . . 1 . . . . . . . . . . . . . . . . . . . . . . . . 1 . . . . . . . . 2 YI-UF0 (-9/Mines) Revision 17 (-4/Cetus) MAIN.C Shell (-1/Command) MAIN.C (-1/Command) Combat | -11 -10 -10 -9 -9 -8 -8 -8 -7 -7 -7 -7 -6 -6 -6 -6 -6 -6 -6 -5 -5 -5 -5 -5 -4 -4 -4 -4 -4 -4 -4 -4 -3 -3 -3 -2 -2 -1 -1 -------- Run | Jun Mat Min Mat Min Mat Gar Mat Fac Low Low Dat Pro Fac Was Fac Low Low Zio Pro Fac Upp Upp Zhi Pro Fac Was Fac Ext Cet Arc Hub Res Qua Sec Res Tes Acc Com Damage Taken 30176 | . 661 181 788 57 1312 676 442 701 126 368 . . 149 . 1133 . 76 . 728 1443 471 282 . 1037 463 . 2446 594 736 61 239 221 1111 9155 49 524 771 3175 Core 4468 | . 111 29 128 . 148 59 33 140 . 49 . . . . 100 . . . 59 155 14 . . 110 25 . 216 40 13 . 33 12 . 1528 14 165 226 1061 Absorbed by Shields 8745 | . . . . . . 11 . . . . . . . . . . . . . . . . . . . . 156 224 380 65 214 232 633 3783 . . 299 2748 Reduced by Siege Mode 808 | . . . . . . . . . . . . . . . 77 . . . 25 58 9 . . 17 8 . 73 25 47 . 2 10 35 422 . . . . Redirected to Shielding 29 | . . . . . . . . . . . . . . . . . . . . . . . . . . . . . . . . . 29 . . . . . Ignored by Resistances 7524 | . . . . . . . . . . . . . . . . . . . . . . . . . . . . . . . . . . 124 52 552 1117 5679 Regen/Repaired (Parts) 2220 | . 422 . 51 . 432 . 105 101 . . . . . . . . . 198 . 420 . . . . . . 26 . . . . . . 465 . . . . Core Remaining (%) 63 | 100 . 44 . 68 . . 56 . . . . 73 . . . . . . 81 . . . . 72 . . . . . . 63 . . 14 . 90 . 38 Volleys Fired 1587 | . 69 19 88 13 133 69 46 66 17 27 . 3 13 21 42 . 4 . 36 49 23 21 . 25 17 20 104 43 31 16 30 37 55 242 2 20 41 145 Largest 6 | . 2 2 3 3 4 4 4 4 4 4 . 4 4 4 4 . 4 . 4 4 4 4 . 4 6 6 6 6 6 6 6 6 6 6 2 2 3 3 Hottest 418 | . 40 40 80 69 92 92 102 107 99 99 . 99 99 99 114 . 111 . 111 114 114 182 . 182 172 172 212 206 210 208 208 208 255 418 200 200 300 330 Shots Fired 5764 | . 138 38 264 39 532 237 180 254 31 40 . 12 49 84 168 2 17 . 144 177 69 36 . 86 100 115 512 199 174 93 180 207 185 881 4 36 101 380 Gun 5670 | . 138 38 264 39 532 237 179 248 31 35 . 12 49 84 168 2 17 . 144 171 61 15 . 70 100 115 504 199 174 93 180 207 185 875 4 36 101 363 Cannon 60 | . . . . . . . . . . . . . . . . . . . . 6 8 21 . 11 . . 8 . . . . . . . . . . 6 Launcher 34 | . . . . . . . 1 6 . 5 . . . . . . . . . . . . . 5 . . . . . . . . . 6 . . . 11 Special . | . . . . . . . . . . . . . . . . . . . . . . . . . . . . . . . . . . . . . . . Kinetic 4945 | . 138 38 261 39 532 237 179 248 31 35 . 12 49 84 168 2 17 . 144 171 61 15 . 70 100 115 504 199 174 93 180 204 165 680 . . . . Thermal 191 | . . . 3 . . . . . . . . . . . . . . . . 6 8 21 . 11 . . 8 . . . . 3 20 105 . . . 6 Explosive 34 | . . . . . . . 1 6 . 5 . . . . . . . . . . . . . 5 . . . . . . . . . 6 . . . 11 Electromagnetic . | . . . . . . . . . . . . . . . . . . . . . . . . . . . . . . . . . . . . . . . Slashing 594 | . . . . . . . . . . . . . . . . . . . . . . . . . . . . . . . . . . 90 4 36 101 363 Robot Hit Streak 53 | . 12 10 20 11 23 20 19 14 6 7 . 2 14 15 30 . 6 . 42 21 17 26 . 30 34 33 30 26 53 25 18 27 34 48 . 18 13 33 Robot Miss Streak 6 | . 3 3 5 2 5 3 4 5 1 2 . 6 4 2 3 . 2 . 2 2 2 1 . 1 2 1 3 2 5 2 2 2 2 5 . 1 2 3 Penetration Max 2 | . . . . . . . 1 1 . . . . 1 . 1 . . . 2 1 . . . 1 . . 2 1 1 . 1 1 . 2 . 1 1 1 Secondary Targets 116 | . 1 1 6 2 5 8 1 3 . 1 . . . . 3 . 1 . 4 1 2 . . 3 1 1 11 7 6 . . 4 1 25 . . 5 13 Max Gunslinging Chain 3 | . 1 1 1 2 1 2 1 1 . 1 . . . . 1 . 1 . 1 1 1 . . 1 1 1 3 1 2 . . 1 1 1 . . 2 1 Shots Hit Robots 3734 | . 95 26 171 21 324 139 119 146 11 10 . 3 34 63 126 . 10 . 111 125 39 17 . 69 71 98 313 122 129 60 102 99 99 618 . 15 61 288 Core Hits 1779 | . 32 16 57 12 123 53 50 71 5 17 . 2 14 20 64 . 5 . 51 59 19 5 . 50 27 26 164 75 65 26 54 53 33 303 . 7 36 185 Critical Kills 94 | . 1 . . . 3 . 1 . . . . . 1 . 1 . 1 . . 2 . . . 1 1 1 13 10 12 8 10 4 4 19 . . . 1 Critical Parts Destroyed 117 | . 1 . 1 . . . . 1 . . . . 1 . . . . . 2 3 1 . . . 1 . 12 13 13 4 15 18 8 23 . . . . Critical Strikes 239 | . 2 . 1 . 3 . 1 1 . . . . 2 1 1 . 1 . 2 5 1 . . 1 2 3 27 24 27 14 25 23 12 53 . . 1 6 Burn 2 | . . . . . . . . . . . . . . . . . . . . . . . . . . . . . . . . . . 2 . . . . Meltdown 3 | . . . . . . . . . . . . . . . . . . . . . . . . . . . 2 . . . . . . . . . . 1 Destroy 221 | . 2 . 1 . 3 . 1 1 . . . . 2 1 1 . 1 . 2 5 1 . . 1 2 3 25 24 27 14 25 23 12 44 . . . . Sever 13 | . . . . . . . . . . . . . . . . . . . . . . . . . . . . . . . . . . 7 . . 1 5 Melee Attacks 33 | . . . . . . 11 . 3 2 7 . . . . 1 . . . . 4 . . . . . . . . . . . . 4 1 . . . . Kinetic 5 | . . . . . . . . . . . . . . . . . . . . . . . . . . . . . . . . . 4 1 . . . . Impact 28 | . . . . . . 11 . 3 2 7 . . . . 1 . . . . 4 . . . . . . . . . . . . . . . . . . Slashing . | . . . . . . . . . . . . . . . . . . . . . . . . . . . . . . . . . . . . . . . Piercing . | . . . . . . . . . . . . . . . . . . . . . . . . . . . . . . . . . . . . . . . Sneak Attacks . | . . . . . . . . . . . . . . . . . . . . . . . . . . . . . . . . . . . . . . . Combat Hostiles . | . . . . . . . . . . . . . . . . . . . . . . . . . . . . . . . . . . . . . . . Follow-up Attacks . | . . . . . . . . . . . . . . . . . . . . . . . . . . . . . . . . . . . . . . . Damage Inflicted 114060 | . 1299 347 2446 368 5159 2194 2245 3440 149 362 . 55 652 1150 2482 . 190 . 2379 2667 881 368 . 2190 1273 2025 8462 3824 3872 1509 3721 3289 3037 19964 . 1130 5049 25882 Guns 103972 | . 1265 327 2441 360 5086 2194 2074 2790 149 169 . 55 652 1150 2451 . 179 . 2379 2656 881 221 . 1178 1273 2025 8360 3824 3872 1509 2953 3289 2928 18473 . 1035 4951 20823 Cannons 644 | . . . . . . . . . . . . . . . . . . . . . . 147 . 301 . . 101 . . . . . . . . . . 95 Explosions 8543 | . . . . . . . 126 591 . 193 . . . . . . . . . . . . . 711 . . . . . . 768 . . 1342 . . . 4812 Melee 109 | . . . . . . . . . . . . . . . . . . . . . . . . . . . . . . . . . 109 . . . . . Ramming 792 | . 34 20 5 8 73 . 45 59 . . . . . . 31 . 11 . . 11 . . . . . . 1 . . . . . . 149 . 95 98 152 Kinetic 72414 | . 1265 327 2407 360 5086 2194 2074 2790 149 169 . 55 652 1150 2451 . 179 . 2379 2656 881 221 . 1178 1273 2025 8360 3824 3872 1509 2953 3289 3000 13686 . . . . Thermal 2095 | . . . 34 . . . . . . . . . . . . . . . . . . 147 . 301 . . 101 . . . 26 . 37 1354 . . . 95 Explosive 7775 | . . . . . . . 126 591 . 193 . . . . . . . . . . . . . 711 . . . . . . . . . 1342 . . . 4812 Electromagnetic 742 | . . . . . . . . . . . . . . . . . . . . . . . . . . . . . . . 742 . . . . . . . Impact . | . . . . . . . . . . . . . . . . . . . . . . . . . . . . . . . . . . . . . . . Slashing 30242 | . . . . . . . . . . . . . . . . . . . . . . . . . . . . . . . . . . 3433 . 1035 4951 20823 Piercing . | . . . . . . . . . . . . . . . . . . . . . . . . . . . . . . . . . . . . . . . Highest Corruption 28 | . . . . . . . . 5 5 6 6 6 . 19 26 26 26 26 . 3 3 3 3 3 . 21 23 25 28 28 8 . 6 6 . . . . Average Corruption 11 | . . . . . . . . 2 5 5 6 6 . 9 22 26 26 26 . 2 3 3 3 3 . 12 21 23 27 15 4 . 4 6 . . . . Corruption Purged 24 | . . . . . . . . . . . . . . . . . . . . . . . . . . . . . . 24 . . . . . . . . Corruption Blocked 16 | . . . . . . . . . . . . . . . . . . . . 16 . . . . . . . . . . . . . . . . . . Effects 938 | . . . . . . . . 26 39 53 6 23 . 4 98 29 51 5 . 15 19 11 3 25 . 16 166 98 40 41 19 . 33 118 . . . . Message Errors 198 | . . . . . . . . 2 10 14 . 8 . 1 19 5 18 3 . 1 5 5 . 8 . 2 27 19 7 9 4 . 7 24 . . . . Matter Fused 208 | . . . . . . . . 3 8 13 2 4 . . 21 11 14 . . 5 2 1 3 4 . 2 31 26 5 10 2 . 14 27 . . . . Heat Flow Errors 114 | . . . . . . . . 3 7 3 1 2 . . 8 5 3 1 . 3 5 1 . 3 . 1 26 15 6 7 1 . 1 12 . . . . Energy Discharges 119 | . . . . . . . . 5 5 13 1 3 . . 20 2 6 1 . 2 1 . . 2 . 1 17 9 3 2 4 . 4 18 . . . . Parts Rejected 12 | . . . . . . . . . . . . 1 . . 3 . . . . 2 . . . . . 2 2 . . . . . . 2 . . . . Parts Fused 11 | . . . . . . . . 1 . . 1 1 . . 1 . . . . . 1 . . . . . . 2 . 1 1 . 1 1 . . . . Data Loss (minor) 100 | . . . . . . . . 5 4 4 1 2 . 3 8 3 7 . . . 1 2 . 3 . 2 20 7 4 3 6 . 2 13 . . . . Data Loss (major) 40 | . . . . . . . . 3 2 2 . . . . 3 1 2 . . . 3 2 . 1 . 1 6 5 2 . 1 . 1 5 . . . . Misfires 46 | . . . . . . . . 3 2 2 . . . . 7 2 1 . . . 1 . . 3 . . 8 5 1 3 . . 1 7 . . . . Alerts 14 | . . . . . . . . 1 1 1 . 2 . . 1 . . . . 1 . . . . . . 3 1 1 . . . 1 1 . . . . Misdirections 3 | . . . . . . . . . . . . . . . . . . . . . . . . . . . 3 . . . . . . . . . . . Weapon Failures 73 | . . . . . . . . . . 1 . . . . 7 . . . . 1 . . . 1 . 5 23 9 11 6 . . 1 8 . . . . Overload Shots 6 | . . . . . . . . . . . . . . . . . . . . . . . . . . . . . . . . . . 1 . . . 5 Effects 1 | . . . . . . . . . . . . . . . . . . . . . . . . . . . . . . . . . . . . . . 1 Heat Surge 1 | . . . . . . . . . . . . . . . . . . . . . . . . . . . . . . . . . . . . . . 1 Overflow Damage 326 | . . . . . . . . 17 . . . . . . 1 . . . . . . . . . . . . . . . 56 . . 31 . . 22 199 Projectiles . | . . . . . . . . . . . . . . . . . . . . . . . . . . . . . . . . . . . . . . . Explosions 220 | . . . . . . . . 17 . . . . . . . . . . . . . . . . . . . . . . 56 . . 24 . . . 123 Melee 106 | . . . . . . . . . . . . . . . 1 . . . . . . . . . . . . . . . . . . 7 . . 22 76 Knockbacks 5 | . . . . . . . . 2 . . . . . . 1 . . . . . . . . . . . . . . . . . . 1 . . . 1 Impact 5 | . . . . . . . . 2 . . . . . . 1 . . . . . . . . . . . . . . . . . . 1 . . . 1 Kinetic . | . . . . . . . . . . . . . . . . . . . . . . . . . . . . . . . . . . . . . . . Secondary . | . . . . . . . . . . . . . . . . . . . . . . . . . . . . . . . . . . . . . . . Self-Inflicted Damage 271 | . . . . . . . . 14 . . . . . . 15 . . . . . . . . 56 . . . . . . 133 . . 42 . . . 11 Shots 5 | . . . . . . . . 1 . . . . . . . . . . . . . . . 1 . . . . . . 2 . . . . . . 1 Rammed 43 | . 6 3 1 2 10 . 4 9 . . . . . . 1 . 1 . . 3 . . . . . . 1 . . . . . . 2 . . . . Targets Rammed 60 | . 6 4 1 2 10 . 5 11 . . . . . . 1 . 1 . . 3 . . . . . . 1 . . . . . . 5 . 4 3 3 Kicked 13 | . . . . . . . . . . . . . . . . . . . . . . . . . . . . . . . . . . 3 . 4 3 3 Crushed 4 | . . 1 . . . . 1 2 . . . . . . . . . . . . . . . . . . . . . . . . . . . . . . Highest Temperature 421 | . 2 . 104 4 150 56 17 255 236 237 161 251 35 . 306 245 270 79 305 206 236 149 . 77 . 205 222 222 199 210 201 63 421 312 . . . 308 Average Temperature 57 | . 2 . 14 2 24 12 7 77 92 70 85 83 10 . 93 105 77 44 72 30 43 58 . 30 . 129 80 94 76 89 97 26 71 96 . . . 124 Received Heat Transfer 4889 | . 345 48 261 . 459 216 207 90 . 9 . . 72 . 375 . . . 234 54 135 36 . 166 . . 177 39 62 4 8 5 536 608 9 90 54 590 Effects 4 | . . . . . . . . 3 . . . . . . . . . . . . . . . . . . 1 . . . . . . . . . . . Interference 4 | . . . . . . . . 3 . . . . . . . . . . . . . . . . . . 1 . . . . . . . . . . . Siege Activations 128 | . . . . . . . . . . . . . . . 10 . 2 . 7 8 5 1 . 6 2 4 24 9 5 3 4 6 6 26 . . . . Total Turns 2063 | . . . . . . . . . . . . . . . 146 . 7 . 81 109 63 13 . 277 22 57 321 111 72 32 71 112 99 470 . . . . Longest Duration 196 | . . . . . . . . . . . . . . . 36 . 5 . 39 30 35 13 . 196 21 22 74 22 18 18 26 64 30 60 . . . . Robots Corrupted . | . . . . . . . . . . . . . . . . . . . . . . . . . . . . . . . . . . . . . . . Combat Hostiles . | . . . . . . . . . . . . . . . . . . . . . . . . . . . . . . . . . . . . . . . Parts Fried 3 | . . . . . . . . . . . . . . . . . . . . . . . . . . . . . . . 3 . . . . . . . Impact Corruptions 7 | . . . . . . . . . . . . . . . 1 . . . . . . . . . . . . . . . . . . 2 . . 2 2 Robots Melted 3 | . . . . . . . . . . . . . . . . . . . . . . . . . . . 2 . . . . . . . . . . 1 Combat Hostiles 3 | . . . . . . . . . . . . . . . . . . . . . . . . . . . 2 . . . . . . . . . . 1 Parts Melted 14 | . . 1 . . . . . . . . . . . . . . . . . . . 3 . 1 . . 4 1 . . . . . 4 . . . . Heat Transferred 3429 | . . . 75 . . . . . . . . . . . . . . . . . . 200 . 450 . . 150 . . . 50 . 37 2417 . . . 50 Parts Sabotaged 9 | . . . . . . . . . . . . . . . . . . . . . . . . . . . 4 . . . . . . 5 . . . . Parts Stolen . | . . . . . . . . . . . . . . . . . . . . . . . . . . . . . . . . . . . . . . . Parts Stripped . | . . . . . . . . . . . . . . . . . . . . . . . . . . . . . . . . . . . . . . . Power Chain Reactions 1 | . . . . . . . . . . . . . . . . . . . . . . . . . . . . . . . 1 . . . . . . . Missiles Intercepted 15 | . . . . . . . . . . . . . . . . . . . . . . . . . . . . . . . . . . . . . . 15 Alert | -11 -10 -10 -9 -9 -8 -8 -8 -7 -7 -7 -7 -6 -6 -6 -6 -6 -6 -6 -5 -5 -5 -5 -5 -4 -4 -4 -4 -4 -4 -4 -4 -3 -3 -3 -2 -2 -1 -1 ------- Run | Jun Mat Min Mat Min Mat Gar Mat Fac Low Low Dat Pro Fac Was Fac Low Low Zio Pro Fac Upp Upp Zhi Pro Fac Was Fac Ext Cet Arc Hub Res Qua Sec Res Tes Acc Com Peak Influence 2785 | . 176 163 446 199 285 2293 1400 585 . . . . 155 16 305 . . . . 529 . . . . 170 7 1019 519 729 428 1009 743 496 1600 1615 1755 2744 2785 Initial 1756 | . . 13 . 109 . 185 1117 382 . . . . . 14 11 . . . . 226 . . . . 42 7 4 266 290 238 45 529 354 174 1100 1100 1100 1756 Average 467 | . 74 33 274 54 122 1093 943 375 . . . . 52 15 120 . . . . 353 . . . . 91 7 445 216 513 298 380 523 385 918 921 1257 1794 2029 Maximum Alert Level 5 | . . . 2 . 1 5 4 2 . . . . . . 1 . . . . 2 . . . . . . 3 2 3 2 3 3 2 5 5 5 5 5 Low Security (%) 35 | 100 100 100 15 100 86 1 . 3 . . . . 100 100 89 . . . . . . . . . 100 100 34 50 . 16 14 . . 1 . . . . Level 1 25 | . . . 81 . 13 26 . 59 . . . . . . 10 . . . . 69 . . . . . . 5 46 26 54 43 8 65 16 . . . . Level 2 16 | . . . 2 . . 7 4 37 . . . . . . . . . . . 29 . . . . . . 44 3 72 29 39 80 34 16 . . . . Level 3 8 | . . . . . . 17 66 . . . . . . . . . . . . . . . . . . . 14 . 1 . 2 10 . 25 84 . . . Level 4 7 | . . . . . . 18 29 . . . . . . . . . . . . . . . . . . . . . . . . . . 40 5 80 24 . Level 5 5 | . . . . . . 29 . . . . . . . . . . . . . . . . . . . . . . . . . . . . . . . 79 High Security . | . . . . . . . . . . . . . . . . . . . . . . . . . . . . . . . . . . . . . . 20 Max Security . | . . . . . . . . . . . . . . . . . . . . . . . . . . . . . . . . . . . 10 19 75 . Squads Dispatched 156 | . 4 . 1 . 10 . 2 9 . . . . 3 . 5 . . . 5 9 . . . . . . 18 2 . . 1 4 7 32 7 7 22 8 Investigation 22 | . 3 . 1 . 1 . 1 1 . . . . 2 . . . . . 4 2 . . . . . . 3 . . . . . . 3 1 . . . Extermination 29 | . . . . . . . . 4 . . . . 1 . 2 . . . . 2 . . . . . . 5 . . . 1 3 4 6 . 1 . . Reinforcement 29 | . 1 . . . 8 . . 3 . . . . . . 3 . . . 1 3 . . . . . . 3 2 . . . . . 3 . . 2 . Assault 66 | . . . . . . . 1 . . . . . . . . . . . . 1 . . . . . . 3 . . . . 1 . 20 6 6 20 8 Garrison 10 | . . . . . 1 . . 1 . . . . . . . . . . . 1 . . . . . . 4 . . . . . 3 . . . . . Intercept . | . . . . . . . . . . . . . . . . . . . . . . . . . . . . . . . . . . . . . . . Searches Triggered . | . . . . . . . . . . . . . . . . . . . . . . . . . . . . . . . . . . . . . . . Data Miner Redirects 13 | . . . . . . . . . . . . . 1 . . . . . . 2 . . . . . . 1 . . . . 1 . 8 . . . . Construction Impeded 8 | . . . . . 1 . . 1 . . . . . . 1 . . . 1 . . . . . . . 1 . . . . . . 2 . . 1 . Haulers Reinforced 5 | . . . . . . . . 2 . . . . . . 1 . . . . . . . . . . . 1 . . . . . . . . . 1 . Active Scanning Responses . | . . . . . . . . . . . . . . . . . . . . . . . . . . . . . . . . . . . . . . . Cargo Convoy Interrupts 1 | . . . . . . . . . . . . . . . . . . . . 1 . . . . . . . . . . . . . . . . . . Stealth | -11 -10 -10 -9 -9 -8 -8 -8 -7 -7 -7 -7 -6 -6 -6 -6 -6 -6 -6 -5 -5 -5 -5 -5 -4 -4 -4 -4 -4 -4 -4 -4 -3 -3 -3 -2 -2 -1 -1 --------- Run | Jun Mat Min Mat Min Mat Gar Mat Fac Low Low Dat Pro Fac Was Fac Low Low Zio Pro Fac Upp Upp Zhi Pro Fac Was Fac Ext Cet Arc Hub Res Qua Sec Res Tes Acc Com Distress Signals 53 | . . . 4 . 5 2 . 3 . . . 1 . . 1 . . . 1 . . . . . 1 . 3 . 2 . . . . 3 . 1 . 26 Communications Jammed . | . . . . . . . . . . . . . . . . . . . . . . . . . . . . . . . . . . . . . . . Distress Signals . | . . . . . . . . . . . . . . . . . . . . . . . . . . . . . . . . . . . . . . . Times Spotted 850 | . 19 9 36 4 48 40 30 31 2 6 . 2 4 5 16 . 4 . 32 16 10 1 . 18 6 6 63 33 18 9 13 18 17 146 11 49 64 64 Peak Tracking Total 41 | . 4 3 5 4 6 5 4 3 1 3 . 1 3 1 4 . 3 . 5 4 4 1 . 7 3 3 6 8 5 1 4 6 3 30 22 40 41 11 Tactical Retreats 30 | . . . . . 3 10 1 . . . . . . . . . . . 1 1 1 . . . . . . 3 1 . . 1 . 1 . 1 6 . Traps | -11 -10 -10 -9 -9 -8 -8 -8 -7 -7 -7 -7 -6 -6 -6 -6 -6 -6 -6 -5 -5 -5 -5 -5 -4 -4 -4 -4 -4 -4 -4 -4 -3 -3 -3 -2 -2 -1 -1 ------- Run | Jun Mat Min Mat Min Mat Gar Mat Fac Low Low Dat Pro Fac Was Fac Low Low Zio Pro Fac Upp Upp Zhi Pro Fac Was Fac Ext Cet Arc Hub Res Qua Sec Res Tes Acc Com Traps Triggered 28 | . 2 . . . . 7 1 2 . . . . 1 . 1 . . . . . . . . . 1 . 4 6 . . 1 . . 1 . 1 . . Indirectly 1 | . . . . . . . . . . . . . . . . . . . . . . . . . . . . . . . 1 . . . . . . . Trap Hack Attempts . | . . . . . . . . . . . . . . . . . . . . . . . . . . . . . . . . . . . . . . . Triggered . | . . . . . . . . . . . . . . . . . . . . . . . . . . . . . . . . . . . . . . . Disarmed 4 | . . . . . . . . . . . . . . . . . . . . . . . . . . . . . . . . . 4 . . . . . Reprogrammed . | . . . . . . . . . . . . . . . . . . . . . . . . . . . . . . . . . . . . . . . Reused . | . . . . . . . . . . . . . . . . . . . . . . . . . . . . . . . . . . . . . . . Traps Extracted . | . . . . . . . . . . . . . . . . . . . . . . . . . . . . . . . . . . . . . . . Installed . | . . . . . . . . . . . . . . . . . . . . . . . . . . . . . . . . . . . . . . . Triggered 3 | . . . . . . . . . 1 . . . . . . . . . . 2 . . . . . . . . . . . . . . . . . . Machines | -11 -10 -10 -9 -9 -8 -8 -8 -7 -7 -7 -7 -6 -6 -6 -6 -6 -6 -6 -5 -5 -5 -5 -5 -4 -4 -4 -4 -4 -4 -4 -4 -3 -3 -3 -2 -2 -1 -1 ---------- Run | Jun Mat Min Mat Min Mat Gar Mat Fac Low Low Dat Pro Fac Was Fac Low Low Zio Pro Fac Upp Upp Zhi Pro Fac Was Fac Ext Cet Arc Hub Res Qua Sec Res Tes Acc Com Machines Disabled 117 | . . . 4 . 2 5 1 11 . . . . 1 . . . . . 2 4 . . . . . . 13 13 . 4 19 . 5 16 . 7 6 4 Max in Single Turn 13 | . . . 1 . 1 1 1 5 . . . . 1 . . . . . 1 2 . . . . . . 3 3 . 1 13 . 1 2 . 2 1 1 Garrison Access 5 | . . . . . . . . . . . . . 1 . . . . . . 1 . . . . . . 2 . . . . . . 1 . . . . Network Hub 1 | . . . . . . . . . . . . . . . . . . . . . . . . . . . . . . . 1 . . . . . . . Energy Cycler 4 | . . . . . . . . . . . . . . . . . . . . . . . . . . . . 4 . . . . . . . . . . Machines Repaired . | . . . . . . . . . . . . . . . . . . . . . . . . . . . . . . . . . . . . . . . Machines Sabotaged . | . . . . . . . . . . . . . . . . . . . . . . . . . . . . . . . . . . . . . . . Overloaded Fab Kills . | . . . . . . . . . . . . . . . . . . . . . . . . . . . . . . . . . . . . . . . Hacking | -11 -10 -10 -9 -9 -8 -8 -8 -7 -7 -7 -7 -6 -6 -6 -6 -6 -6 -6 -5 -5 -5 -5 -5 -4 -4 -4 -4 -4 -4 -4 -4 -3 -3 -3 -2 -2 -1 -1 --------- Run | Jun Mat Min Mat Min Mat Gar Mat Fac Low Low Dat Pro Fac Was Fac Low Low Zio Pro Fac Upp Upp Zhi Pro Fac Was Fac Ext Cet Arc Hub Res Qua Sec Res Tes Acc Com Machines Accessed 99 | . 8 . 10 . 9 4 6 9 . . 4 . 5 . 2 . . . 2 7 . . 4 . . . 9 2 . . 3 2 3 5 2 1 . 2 Terminals 65 | . 5 . 8 . 6 4 5 6 . . . . 1 . 2 . . . 1 4 . . . . . . 4 2 . . 3 2 3 4 2 1 . 2 Fabricators 8 | . . . . . . . . 2 . . . . 3 . . . . . 1 1 . . . . . . 1 . . . . . . . . . . . Repair Stations 7 | . 1 . 1 . 1 . 1 1 . . . . . . . . . . . 1 . . . . . . 1 . . . . . . . . . . . Recycling Units 4 | . 2 . 1 . 1 . . . . . . . . . . . . . . . . . . . . . . . . . . . . . . . . . Scanalyzers . | . . . . . . . . . . . . . . . . . . . . . . . . . . . . . . . . . . . . . . . Garrison Access 7 | . . . . . 1 . . . . . . . 1 . . . . . . 1 . . . . . . 3 . . . . . . 1 . . . . Total Hacks 326 | . 33 . 34 . 34 6 23 24 . . 28 . 15 . 5 . . . 4 18 . . 17 . . . 24 4 . . 10 4 14 14 11 2 . 2 Successful 190 | . 20 . 16 . 21 3 9 14 . . 28 . 5 . 3 . . . 3 11 . . 17 . . . 11 2 . . 4 2 10 5 6 . . . Failed 136 | . 13 . 18 . 13 3 14 10 . . . . 10 . 2 . . . 1 7 . . . . . . 13 2 . . 6 2 4 9 5 2 . 2 Catastrophic 22 | . 2 . 1 . 1 2 3 3 . . . . . . . . . . . 2 . . . . . . . . . . . 1 . 1 3 1 . 2 Database Lockouts . | . . . . . . . . . . . . . . . . . . . . . . . . . . . . . . . . . . . . . . . Manual 157 | . 20 . 29 . 18 . 18 15 . . . . 4 . 2 . . . . 6 . . . . . . 3 2 . . 10 2 7 7 10 2 . 2 Terminals 207 | . 20 . 29 . 21 6 19 19 . . . . 3 . 5 . . . 1 11 . . . . . . 13 4 . . 10 4 14 13 11 2 . 2 Fabricators 21 | . . . . . . . . 3 . . . . 10 . . . . . 3 2 . . . . . . 3 . . . . . . . . . . . Repair Stations 35 | . 10 . 4 . 10 . 4 2 . . . . . . . . . . . 2 . . . . . . 3 . . . . . . . . . . . Recycling Units 5 | . 3 . 1 . 1 . . . . . . . . . . . . . . . . . . . . . . . . . . . . . . . . . Scanalyzers . | . . . . . . . . . . . . . . . . . . . . . . . . . . . . . . . . . . . . . . . Garrison Access 13 | . . . . . 2 . . . . . . . 2 . . . . . . 3 . . . . . . 5 . . . . . . 1 . . . . Terminal Hacks 105 | . 5 . 6 . 5 3 4 6 . . 28 . 1 . 2 . . . 1 3 . . 17 . . . 4 2 . . 2 1 7 3 5 . . . Record 16 | . . . . . . . . . . . 11 . . . . . . . . . . . 5 . . . . . . . . . . . . . . . Part Schematic 16 | . 1 . . . 1 . . 1 . . 9 . . . . . . . . . . . 4 . . . . . . . . . . . . . . . Robot Schematic 5 | . . . . . . . . . . . 5 . . . . . . . . . . . . . . . . . . . . . . . . . . . Robot Analysis 9 | . 2 . 1 . 1 . . . . . . . . . 1 . . . . . . . 4 . . . . . . . . . . . . . . . Prototype ID Bank 11 | . . . 3 . . . . . . . 3 . . . 1 . . . . . . . 4 . . . . . . . . . . . . . . . Open Door 2 | . . . . . . . . . . . . . . . . . . . 1 . . . . . . . . . . . . . . 1 . . . . Level Access Points 2 | . . . . . . . . . . . . . . . . . . . . . . . . . . . . . . . 1 . 1 . . . . . Branch Access Points 5 | . . . . . . . . 1 . . . . . . . . . . . 1 . . . . . . 1 . . . . 1 . . 1 . . . Emergency Access Points 1 | . . . . . . 1 . . . . . . . . . . . . . . . . . . . . . . . . . . . . . . . . Terminal Index 6 | . 1 . 1 . . . 1 . . . . . . . . . . . . . . . . . . . . . . . 1 . . 1 1 . . . Fabricator Index 2 | . . . . . . . . 1 . . . . 1 . . . . . . . . . . . . . . . . . . . . . . . . . Scanalyzer Index 1 | . . . . . . . . . . . . . . . . . . . . . . . . . . . . . . . . . 1 . . . . . Alert Level 7 | . . . . . . . . 2 . . . . . . . . . . . . . . . . . . . 1 . . . . 2 1 1 . . . Unreport Threat 12 | . . . . . 2 . 3 1 . . . . . . . . . . . . . . . . . . 3 1 . . . . . . 2 . . . Locate Traps 2 | . . . . . . . . . . . . . . . . . . . . 1 . . . . . . . . . . . . 1 . . . . . Disarm Traps 1 | . . . . . . . . . . . . . . . . . . . . . . . . . . . . . . . . . 1 . . . . . Hauler Manifests 4 | . 1 . 1 . 1 . . . . . . . . . . . . . . 1 . . . . . . . . . . . . . . . . . . Zone Layout 1 | . . . . . . . . . . . . . . . . . . . . . . . . . . . . . . . . . 1 . . . . . Garrison Registry 1 | . . . . . . 1 . . . . . . . . . . . . . . . . . . . . . . . . . . . . . . . . Security Stations 1 | . . . . . . 1 . . . . . . . . . . . . . . . . . . . . . . . . . . . . . . . . Fabricator Hacks 9 | . . . . . . . . 2 . . . . 3 . . . . . 2 1 . . . . . . 1 . . . . . . . . . . . Network Status 2 | . . . . . . . . . . . . . . . . . . . . 1 . . . . . . 1 . . . . . . . . . . . Load Schematic 3 | . . . . . . . . . . . . . 2 . . . . . 1 . . . . . . . . . . . . . . . . . . . Build 4 | . . . . . . . . 2 . . . . 1 . . . . . 1 . . . . . . . . . . . . . . . . . . . Repair Station Hacks 30 | . 10 . 2 . 10 . 2 2 . . . . . . . . . . . 2 . . . . . . 2 . . . . . . . . . . . Scan Component 15 | . 5 . 1 . 5 . 1 1 . . . . . . . . . . . 1 . . . . . . 1 . . . . . . . . . . . Repair 15 | . 5 . 1 . 5 . 1 1 . . . . . . . . . . . 1 . . . . . . 1 . . . . . . . . . . . Recycling Unit Hacks . | . . . . . . . . . . . . . . . . . . . . . . . . . . . . . . . . . . . . . . . Scanalyzer . | . . . . . . . . . . . . . . . . . . . . . . . . . . . . . . . . . . . . . . . Garrison Access Hacks 6 | . . . . . 1 . . . . . . . 1 . . . . . . 1 . . . . . . 2 . . . . . . 1 . . . . Unlock Access 1 | . . . . . 1 . . . . . . . . . . . . . . . . . . . . . . . . . . . . . . . . . Seal Access 5 | . . . . . . . . . . . . . 1 . . . . . . 1 . . . . . . 2 . . . . . . 1 . . . . Unauthorized Hacks 40 | . 5 . 8 . 5 . 3 4 . . . . . . 1 . . . . 4 . . . . . . 2 . . . 2 1 3 1 1 . . . Terminals 36 | . 3 . 7 . 4 . 3 4 . . . . . . 1 . . . . 4 . . . . . . 2 . . . 2 1 3 1 1 . . . Track 1 | . . . . . 1 . . . . . . . . . . . . . . . . . . . . . . . . . . . . . . . . . Assimilate 2 | . . . . . . . . . . . . . . . 1 . . . . 1 . . . . . . . . . . . . . . . . . . Botnet 32 | . 3 . 6 . 3 . 3 4 . . . . . . . . . . . 3 . . . . . . 2 . . . 2 1 3 1 1 . . . Disrupt 1 | . . . 1 . . . . . . . . . . . . . . . . . . . . . . . . . . . . . . . . . . . Fabricators . | . . . . . . . . . . . . . . . . . . . . . . . . . . . . . . . . . . . . . . . Repair Stations . | . . . . . . . . . . . . . . . . . . . . . . . . . . . . . . . . . . . . . . . Recycling Units 4 | . 2 . 1 . 1 . . . . . . . . . . . . . . . . . . . . . . . . . . . . . . . . . Tunnel 4 | . 2 . 1 . 1 . . . . . . . . . . . . . . . . . . . . . . . . . . . . . . . . . Scanalyzers . | . . . . . . . . . . . . . . . . . . . . . . . . . . . . . . . . . . . . . . . Garrison Access . | . . . . . . . . . . . . . . . . . . . . . . . . . . . . . . . . . . . . . . . Data Cores Recovered 2 | . . . . . . . . . . . . . . . 1 . . . . . . . . . . . . . . . . . . . . . . 1 Used 1 | . . . . . . . . . . . . . . . . . . . . . . . . . . . . . . . . . . . . . . 1 Hacking Detections 79 | . 6 . 9 . 6 4 6 9 . . . . 5 . 2 . . . 2 7 . . . . . . 6 2 . . 3 2 2 3 2 1 . 2 Full Trace Events 15 | . 1 . . . 1 1 1 1 . . . . 2 . . . . . 1 2 . . . . . . 2 . . . . . . 2 1 . . . Feedback Events . | . . . . . . . . . . . . . . . . . . . . . . . . . . . . . . . . . . . . . . . Feedback Blocked . | . . . . . . . . . . . . . . . . . . . . . . . . . . . . . . . . . . . . . . . Robot Schematics Acquired 5 | . . . . . . . . . . . 5 . . . . . . . . . . . . . . . . . . . . . . . . . . . Robots Built . | . . . . . . . . . . . . . . . . . . . . . . . . . . . . . . . . . . . . . . . Authchips . | . . . . . . . . . . . . . . . . . . . . . . . . . . . . . . . . . . . . . . . Time . | . . . . . . . . . . . . . . . . . . . . . . . . . . . . . . . . . . . . . . . Total Robot Build Rating . | . . . . . . . . . . . . . . . . . . . . . . . . . . . . . . . . . . . . . . . Part Schematics Acquired 16 | . 1 . . . 1 . . 1 . . 9 . . . . . . . . . . . 4 . . . . . . . . . . . . . . . Parts Built 5 | . . . . . . . . 3 . . . . 1 . . . . . 1 . . . . . . . . . . . . . . . . . . . Authchips . | . . . . . . . . . . . . . . . . . . . . . . . . . . . . . . . . . . . . . . . Time 381 | . . . . . . . . 153 . . . . 152 . . . . . 76 . . . . . . . . . . . . . . . . . . . Total Part Build Rating 29 | . . . . . . . . 19 . . . . 5 . . . . . 5 . . . . . . . . . . . . . . . . . . . Parts Repaired 15 | . 5 . 1 . 5 . 1 1 . . . . . . . . . . . 1 . . . . . . 1 . . . . . . . . . . . Time 476 | . 130 . 32 . 166 . 32 32 . . . . . . . . . . . 28 . . . . . . 56 . . . . . . . . . . . Parts Recycled . | . . . . . . . . . . . . . . . . . . . . . . . . . . . . . . . . . . . . . . . Recycled Matter . | . . . . . . . . . . . . . . . . . . . . . . . . . . . . . . . . . . . . . . . Retrieved Matter . | . . . . . . . . . . . . . . . . . . . . . . . . . . . . . . . . . . . . . . . Retrieved Components . | . . . . . . . . . . . . . . . . . . . . . . . . . . . . . . . . . . . . . . . Parts Scanalyzed . | . . . . . . . . . . . . . . . . . . . . . . . . . . . . . . . . . . . . . . . Part Schematics Acquired . | . . . . . . . . . . . . . . . . . . . . . . . . . . . . . . . . . . . . . . . Parts Damaged . | . . . . . . . . . . . . . . . . . . . . . . . . . . . . . . . . . . . . . . . Bothacking | -11 -10 -10 -9 -9 -8 -8 -8 -7 -7 -7 -7 -6 -6 -6 -6 -6 -6 -6 -5 -5 -5 -5 -5 -4 -4 -4 -4 -4 -4 -4 -4 -3 -3 -3 -2 -2 -1 -1 ------------ Run | Jun Mat Min Mat Min Mat Gar Mat Fac Low Low Dat Pro Fac Was Fac Low Low Zio Pro Fac Upp Upp Zhi Pro Fac Was Fac Ext Cet Arc Hub Res Qua Sec Res Tes Acc Com Used RIF Installer . | . . . . . . . . . . . . . . . . . . . . . . . . . . . . . . . . . . . . . . . Robots Hacked . | . . . . . . . . . . . . . . . . . . . . . . . . . . . . . . . . . . . . . . . Non-combat . | . . . . . . . . . . . . . . . . . . . . . . . . . . . . . . . . . . . . . . . Combat . | . . . . . . . . . . . . . . . . . . . . . . . . . . . . . . . . . . . . . . . Robot Hacks Applied . | . . . . . . . . . . . . . . . . . . . . . . . . . . . . . . . . . . . . . . . Relay Couplers Released 6 | . . . . . . . . . . . . . . . . . . . . . . . . . . . 3 . . . . . 3 . . . . . Programmers 6 | . . . . . . . . . . . . . . . . . . . . . . . . . . . 3 . . . . . 3 . . . . . Fabnet Peak Effective % . | . . . . . . . . . . . . . . . . . . . . . . . . . . . . . . . . . . . . . . . Robots Rewired 21 | . . . . . . . . . . . . . . . . . . . 11 . . . . . . . . 10 . . . . . . . . . . Allies Hacked 2 | . . . . . . . . . . . . . . . . . . . 2 . . . . . . . . . . . . . . . . . . . Hacks Repelled . | . . . . . . . . . . . . . . . . . . . . . . . . . . . . . . . . . . . . . . . Allies | -11 -10 -10 -9 -9 -8 -8 -8 -7 -7 -7 -7 -6 -6 -6 -6 -6 -6 -6 -5 -5 -5 -5 -5 -4 -4 -4 -4 -4 -4 -4 -4 -3 -3 -3 -2 -2 -1 -1 -------- Run | Jun Mat Min Mat Min Mat Gar Mat Fac Low Low Dat Pro Fac Was Fac Low Low Zio Pro Fac Upp Upp Zhi Pro Fac Was Fac Ext Cet Arc Hub Res Qua Sec Res Tes Acc Com Total Allies 101 | . . . . . . . . . . . . 1 . . 1 . . 5 11 . . . . . . . . 13 . . . . . . 7 . 30 33 Largest Group 8 | . . . . . . . . . . . . 1 1 1 1 1 1 6 8 . . . . . . . . 5 . . . . . . 3 . 6 6 Highest-Rated Group 226 | . . . . . . . . . . . . 96 96 91 91 26 24 162 226 . . . . . . . . 218 . . . . . . 43 . 87 83 Highest-Rated Ally 96 | . . . . . . . . . . . . 96 96 91 91 26 24 31 41 . . . . . . . . 51 . . . . . . 15 . 15 15 Total Orders . | . . . . . . . . . . . . . . . . . . . . . . . . . . . . . . . . . . . . . . . Ally Attacks 276 | . . . . . . . . . . . . 1 19 28 7 . . . 130 . . . . . . . . 56 . . . . . . 4 . 31 . Total Damage 6177 | . . . . . . . . . . . . 48 652 827 192 . . . 2785 . . . . . . . . 1240 . . . . . . 35 . 398 . Kills 39 | . . . . . . . . . . . . 1 3 2 2 . . . 22 . . . . . . . . 8 . . . . . . . . 1 . Allies Corrupted 1 | . . . . . . . . . . . . . . . . . . . 1 . . . . . . . . . . . . . . . . . . . Allies Melted 2 | . . . . . . . . . . . . . . . . . . . 1 . . . . . . . . 1 . . . . . . . . . . Intel | -11 -10 -10 -9 -9 -8 -8 -8 -7 -7 -7 -7 -6 -6 -6 -6 -6 -6 -6 -5 -5 -5 -5 -5 -4 -4 -4 -4 -4 -4 -4 -4 -3 -3 -3 -2 -2 -1 -1 ------- Run | Jun Mat Min Mat Min Mat Gar Mat Fac Low Low Dat Pro Fac Was Fac Low Low Zio Pro Fac Upp Upp Zhi Pro Fac Was Fac Ext Cet Arc Hub Res Qua Sec Res Tes Acc Com Robot Analysis Total 9 | . 2 . 1 . 1 . . . . . . . . . 1 . . . . . . . 4 . . . . . . . . . . . . . . . Derelict Logs Recovered 14 | . . 2 . 1 . . . . 2 1 . 2 . . . 2 1 . . . . . . 3 . . . . . . . . . . . . . . Drone Launches . | . . . . . . . . . . . . . . . . . . . . . . . . . . . . . . . . . . . . . . . Drone Recoveries . | . . . . . . . . . . . . . . . . . . . . . . . . . . . . . . . . . . . . . . . Exploration | -11 -10 -10 -9 -9 -8 -8 -8 -7 -7 -7 -7 -6 -6 -6 -6 -6 -6 -6 -5 -5 -5 -5 -5 -4 -4 -4 -4 -4 -4 -4 -4 -3 -3 -3 -2 -2 -1 -1 ------------- Run | Jun Mat Min Mat Min Mat Gar Mat Fac Low Low Dat Pro Fac Was Fac Low Low Zio Pro Fac Upp Upp Zhi Pro Fac Was Fac Ext Cet Arc Hub Res Qua Sec Res Tes Acc Com Turns Passed 52576 | 62 1409 936 2155 1589 3774 3386 1291 2315 1805 1722 272 849 1159 268 1761 573 1081 2145 1845 1605 1022 686 350 1495 450 261 3219 1902 595 957 677 1229 1646 3879 69 319 344 1474 Spaces Moved 19381 | 41 634 537 647 480 889 896 334 597 557 513 84 262 452 85 614 239 438 889 615 624 395 265 139 473 161 70 1024 662 178 179 202 345 474 1256 172 377 587 1995 Core 108 | 12 . . . . . . . . . . . . . . . . . . . . . . . . . . . . . . . . . 96 . . . . Treads 8213 | 29 634 537 647 480 889 896 334 597 557 513 84 262 . . 85 . 65 . 10 21 99 265 139 471 63 13 2 6 . . . . 2 513 . . . . Legs 3413 | . . . . . . . . . . . . . . . . . . . . . . . . . . . . . . . . . . 282 172 377 587 1995 Wheels 7647 | . . . . . . . . . . . . . 452 85 529 239 373 889 605 603 296 . . 2 98 57 1022 656 178 179 202 345 472 365 . . . . Hover . | . . . . . . . . . . . . . . . . . . . . . . . . . . . . . . . . . . . . . . . Flight . | . . . . . . . . . . . . . . . . . . . . . . . . . . . . . . . . . . . . . . . Fastest Speed 30 | 50 160 160 160 320 320 320 305 305 305 317 317 317 225 210 225 240 225 210 205 205 205 240 240 240 220 220 205 235 235 235 235 265 250 30 30 30 30 30 Average Speed 216 | 127 160 160 272 320 320 320 317 305 312 317 317 317 225 222 230 240 238 236 231 209 225 240 240 244 229 223 231 235 235 235 235 279 280 207 30 30 30 30 Slowest Speed 480 | 160 240 160 320 320 320 480 320 305 317 317 317 317 225 225 240 240 240 240 240 260 260 240 240 275 245 240 320 320 235 235 270 280 410 400 30 30 30 30 Overloaded Moves . | . . . . . . . . . . . . . . . . . . . . . . . . . . . . . . . . . . . . . . . Propulsion Burnouts . | . . . . . . . . . . . . . . . . . . . . . . . . . . . . . . . . . . . . . . . Robots Hopped . | . . . . . . . . . . . . . . . . . . . . . . . . . . . . . . . . . . . . . . . Cave-ins Triggered 2 | . . . . . . . . . . 1 . . . . . . . . . . . . . . . . . . . . . . . . . . . 1 Teleports 1 | . . . . . . . . . . . . . . . . . . . . . . . . . . . 1 . . . . . . . . . . . Exploration Rate (%) 53 | 4 93 98 65 95 66 81 45 22 73 68 69 43 11 66 20 47 63 81 58 19 56 59 60 71 7 66 31 87 56 83 39 15 53 60 4 75 17 47 Regions Visited 38 Branch Regions 22 Pre-discovered Areas 11 | . 2 1 1 . 1 . . . 1 . 1 . . . . . . . . . . . 3 1 . . . . . . . . . . . . . . Known Exits Taken 26 | . . . 1 . 1 . . 1 1 1 1 1 . . 1 1 1 1 1 1 1 1 1 1 . . 1 1 1 1 1 1 1 1 1 . . . Unknown Exits Taken 7 | 1 1 1 . 1 . . 1 . . . . . . . . . . . . . . . . . . . . . . . . . . . . 1 1 . Scrap Searched 19 | . . 1 . 2 . . . . 3 1 . 1 . . . 2 . 3 3 . 2 . . 1 . . . . . . . . . . . . . . Spaces Dug 184 | . . . . . . 3 . 3 6 9 . . . . 1 . . . . 10 5 10 . 8 . . 30 3 . . . 8 3 11 8 23 17 26 Terrain Destroyed 1173 | . . . . . . 3 12 67 7 55 . . . . 1 . 1 . 3 41 9 17 . 35 2 1 151 50 18 34 232 22 16 38 8 44 120 186 Melee 20 | . . . . . . 3 . 3 2 7 . . . . 1 . . . . 4 . . . . . . . . . . . . . . . . . . Projectile 610 | . . . . . . . . 2 4 10 . . . . . . 1 . 3 9 9 17 . 1 2 1 105 32 18 34 50 13 13 30 8 44 93 111 AOE 517 | . . . . . . . 12 62 . 37 . . . . . . . . . 28 . . . 34 . . 43 18 . . 181 . . . . . 27 75 Terrain Rammed 2 | . . . . . . . . . . . . . . . . . . . . . . . . . . . . . . . . . . 2 . . . . Walls Destroyed . | . . . . . . . . . . . . . . . . . . . . . . . . . . . . . . . . . . . . . . . Machines Disabled 1 | . . . . . . . . . . . . . . . . . . . . . . . . . . . . . . . . . . 1 . . . . Actions | -11 -10 -10 -9 -9 -8 -8 -8 -7 -7 -7 -7 -6 -6 -6 -6 -6 -6 -6 -5 -5 -5 -5 -5 -4 -4 -4 -4 -4 -4 -4 -4 -3 -3 -3 -2 -2 -1 -1 --------- Run | Jun Mat Min Mat Min Mat Gar Mat Fac Low Low Dat Pro Fac Was Fac Low Low Zio Pro Fac Upp Upp Zhi Pro Fac Was Fac Ext Cet Arc Hub Res Qua Sec Res Tes Acc Com Total 26948 | 48 879 573 864 513 1578 1293 471 937 600 563 91 277 575 137 867 239 461 930 961 830 494 294 158 769 206 129 1640 924 280 678 321 516 679 2047 185 552 694 2695 Wait 4489 | . 143 13 70 8 483 275 68 196 8 8 . 10 94 8 164 1 15 22 247 73 64 7 . 263 16 28 392 107 29 466 74 76 76 312 11 141 44 477 Move 19342 | 40 633 536 646 479 888 894 333 596 556 511 83 261 452 84 613 238 437 888 614 623 394 264 138 472 161 69 1023 661 177 178 201 344 473 1256 171 376 586 1993 Hop . | . . . . . . . . . . . . . . . . . . . . . . . . . . . . . . . . . . . . . . . Pick Up 236 | 2 12 . 26 4 21 6 4 9 1 . . 1 5 3 7 . . 1 3 15 3 . 3 . 5 3 23 7 7 6 3 9 8 24 . . 2 13 Fast Attach 205 | 6 5 . 1 . 5 . 1 6 2 . 4 1 . 1 7 . . 9 8 13 2 . 6 1 . 2 15 4 7 4 . 8 12 57 . 5 6 7 Attach 115 | . 1 . 6 . 6 1 4 2 1 1 . . 2 . 2 . . . 3 10 2 1 2 2 3 . 10 3 3 1 1 2 7 37 1 . 1 . Detach 17 | . . . . . . . 1 . . . . . . . 1 . . . . 1 . . 1 . . . . 2 1 . . . 2 6 . 1 . 1 Swap 386 | . 5 1 13 2 11 15 4 32 7 8 . . 6 12 19 . 4 . . 18 2 1 1 5 3 5 46 12 13 2 9 23 24 69 . 1 . 13 Drop 309 | . 5 . 13 5 21 9 5 14 6 . 4 1 3 8 10 . . 10 9 21 4 . 7 1 1 2 19 10 12 5 3 17 18 37 . 4 3 22 Fire 1587 | . 69 19 88 13 133 69 46 66 17 27 . 3 13 21 42 . 4 . 36 49 23 21 . 25 17 20 104 43 31 16 30 37 55 242 2 20 41 145 Melee 33 | . . . . . . 11 . 3 2 7 . . . . 1 . . . . 4 . . . . . . . . . . . . 4 1 . . . . Ram 4 | . . . . . . . . . . . . . . . 1 . . . . . . . . . . . 1 . . . . . . 2 . . . . Kick 12 | . . . . . . . . . . . . . . . . . . . . . . . . . . . . . . . . . . 2 . 4 3 3 Crush 46 | . 6 4 1 2 10 . 5 11 . . . . . . . . 1 . . 3 . . . . . . 1 . . . . . . 2 . . . . Escape Stasis 49 | . . . . . . 13 . 2 . 1 . . . . . . . . . . . . . . . . 6 18 . . . . . . . . 8 1 Rewire 118 | . . . . . . . . . . . . . . . . . . . 41 . . . . . . . . 57 . . . . . . . . . 20 Trap . | . . . . . . . . . . . . . . . . . . . . . . . . . . . . . . . . . . . . . . . Miscellaneous . | . . . . . . . . . . . . . . . . . . . . . . . . . . . . . . . . . . . . . . . Route ------- -11/Junkyard -10/Materials (discovered 5 exits: *Mat x3 / [*Min] / [*Sub]) -10/Mines (discovered 3 exits: *Mat x2 / [*Sub]) -9/Materials -9/Mines (discovered 2 exits: *Mat x2) -8/Materials (discovered 3 exits: *Fac x2 / Gar) -8/Garrison (discovered 3 exits: *Mat x3) -8/Materials -7/Factory (discovered 4 exits: Sto x2 / *Low x2) -7/Lower Caves -7/Lower Caves (discovered 2 exits: *Fac / *Dat) -7/Data Miner -6/Proximity Caves -6/Factory -6/Waste -6/Factory -6/Lower Caves -6/Lower Caves (discovered 2 exits: *Fac / *Zio) -6/Zion -5/Proximity Caves -5/Factory (discovered 3 exits: Fac / *Upp x2) -5/Upper Caves -5/Upper Caves (discovered 2 exits: *Fac / *Zhi) -5/Zhirov -4/Proximity Caves -4/Factory -4/Waste -4/Factory (discovered 5 exits: *Res / *Upp x2 / *Ext x2) -4/Extension (discovered 3 exits: *Res x2 / *Cet) -4/Cetus (discovered 2 exits: *Res / *Arc) -4/Archives (discovered 2 exits: *Res / *Hub) -4/Hub_04(d) (discovered 4 exits: *Res x4) -3/Research (discovered 3 exits: Arm / *Qua x2) -3/Quarantine (discovered 2 exits: *Res / *Sec) -3/Section 7 -2/Research (discovered 3 exits: [*Acc] / *Tes x2) -2/Testing -1/Access -1/Command (discovered 2 exits: [*Sur x2]) To Fleet Rendezvous History --------- Turn | Location | Event 2 | -11/Junkyard | Met Revision 17 6 | -11/Junkyard | Discovered new exit (range 15) 63 | -11/Junkyard | Entered Materials 292 | -10/Materials | Discovered new exit (range 15) 330 | -10/Materials | Build established: Mutant 635 | -10/Materials | Discovered new exit (range 15) 822 | -10/Materials | Repaired Lgt. Treads 850 | -10/Materials | Repaired Lgt. Treads 877 | -10/Materials | Repaired Assault Rifle 905 | -10/Materials | Repaired Assault Rifle 932 | -10/Materials | Repaired Ion Engine 1148 | -10/Materials | Discovered new exit (range 16) 1156 | -10/Materials | Discovered new exit (range 13) 1224 | -10/Materials | Discovered new exit (range 13) 1472 | -10/Materials | Entered Mines 1472 | -10/Mines | Discovered new exit (range 7) 1476 | -10/Mines | Met a Derelict bent on vengeance 1804 | -10/Mines | Learned Materials emergency access door positions 2061 | -10/Mines | Learned location of 1 exit from Materials 2162 | -10/Mines | Core integrity fell below 50% 2190 | -10/Mines | Discovered new exit (range 9) 2381 | -10/Mines | Discovered new exit (range 8) 2408 | -10/Mines | Entered Materials 2408 | -9/Materials | Evolved 2 slots: Utility x1, Weapon x1 2409 | -9/Materials | Identified exit to Mines 2877 | -9/Materials | Lost 3 parts (1n2w) 3295 | -9/Materials | Build established: Scavenger-Tank 4065 | -9/Materials | Repaired Med. Armor Plating 4563 | -9/Materials | Entered Mines 4679 | -9/Mines | A weapon hastily lodged in a ceiling crevice suddenly fell to the ground 5252 | -9/Mines | Learned Materials trap positions 5563 | -9/Mines | YI-UF0 nonchalantly dropped a Grenade Launcher on the ground 5624 | -9/Mines | Destroyed YI-UF0 5832 | -9/Mines | Discovered new exit (range 10) 5906 | -9/Mines | Discovered new exit (range 10) 6031 | -9/Mines | Found a hidden stash of uninstalled traps 6152 | -9/Mines | Entered Materials 6152 | -8/Materials | Evolved 2 slots: Utility x1, Weapon x1 6153 | -8/Materials | Loaded intel: 20 trap records 6936 | -8/Materials | Build established: Scavenger-Gunner 8033 | -8/Materials | Build established: Gunner 8358 | -8/Materials | Build established: Scavenger-Gunner 8370 | -8/Materials | Discovered new exit (range 15) 8718 | -8/Materials | Discovered new exit (range 13) 8953 | -8/Materials | Build established: Gunner 9131 | -8/Materials | Repaired Hrd. Medium Armor Plating 9171 | -8/Materials | Repaired Hrd. Medium Armor Plating 9204 | -8/Materials | Repaired Cooling System 9231 | -8/Materials | Repaired Lgt. Treads 9265 | -8/Materials | Repaired Autogun 9742 | -8/Materials | Garrison activated, responded to threat 9916 | -8/Materials | Identified exit to Garrison 9926 | -8/Materials | Entered Garrison 10196 | -8/Garrison | Triggered checkpoint 10400 | -8/Garrison | Triggered checkpoint 10554 | -8/Garrison | Discovered new exit (range 8) 10614 | -8/Garrison | Triggered checkpoint 10864 | -8/Garrison | Triggered checkpoint 10913 | -8/Garrison | Destroyed 7 combat bots 11052 | -8/Garrison | Triggered checkpoint 11252 | -8/Garrison | Discovered new exit (range 14) 11403 | -8/Garrison | Learned Materials security intel 11636 | -8/Garrison | Triggered checkpoint 11838 | -8/Garrison | Discovered new exit (range 12) 12068 | -8/Garrison | Spotted B-75 Beast 12099 | -8/Garrison | Destroyed B-75 Beast 12293 | -8/Garrison | Discovered new exit (range 38) 12293 | -8/Garrison | Discovered new exit (range 69) 12293 | -8/Garrison | Discovered new exit (range 73) 12675 | -8/Garrison | Build established: Scavenger-Gunner 13040 | -8/Garrison | Attempted to access garrison exit controls, blocked by remote lockdown 13312 | -8/Garrison | Entered Materials 13390 | -8/Materials | Repaired Autogun 14112 | -8/Materials | First assault squad dispatched 14525 | -8/Materials | Discovered new exit (range 11) 14603 | -8/Materials | Entered Factory 14603 | -7/Factory | Evolved 2 slots: Utility x2 14874 | -7/Factory | Fabricated Adv. Sensor Array (x1) 15074 | -7/Factory | Identified exit to Storage 15074 | -7/Factory | Identified exit to Lower Caves 15114 | -7/Factory | Build established: Skirmisher 15419 | -7/Factory | Repaired Autogun 16592 | -7/Factory | Fabricated Adv. Medium Treads (x2) 16896 | -7/Factory | Garrison activated, responded to threat 16918 | -7/Factory | Entered Lower Caves 16924 | -7/Lower Caves | Met a Warlord Commander 16925 | -7/Lower Caves | Learned location of Warlord (-4) 16939 | -7/Lower Caves | Found Unknown Device 16939 | -7/Lower Caves | Identified Encrypted Comm Array 17237 | -7/Lower Caves | Spotted B-75 Beast 17480 | -7/Lower Caves | Learned Factory garrison access intel 17562 | -7/Lower Caves | Identified exit to Lower Caves 18309 | -7/Lower Caves | Encountered a Warlord checkpoint 18723 | -7/Lower Caves | Entered another Lower Caves area 18748 | -7/Lower Caves | Discovered new exit (range 9) 19361 | -7/Lower Caves | Crushed by falling debris 19375 | -7/Lower Caves | Encountered a Warlord checkpoint 19792 | -7/Lower Caves | Learned Factory terminal intel 20074 | -7/Lower Caves | Discovered new exit (range 8) 20442 | -7/Lower Caves | Identified exit to Data Miner 20445 | -7/Lower Caves | Entered Data Miner 20445 | -7/Data Miner | Discovered new exit (range 6) 20461 | -7/Data Miner | Identified exit to Proximity Caves 20508 | -7/Data Miner | Met Data Miner 20568 | -7/Data Miner | Learned location of Section 7 (-3) 20568 | -7/Data Miner | Acquired the access code to Warlord's prototype stash 20609 | -7/Data Miner | Received God Mode back door access code from Data Miner 20717 | -7/Data Miner | Entered Proximity Caves 20829 | -6/Proximity Caves | Escorted by Enhanced Grunt 20985 | -6/Proximity Caves | Learned Factory trap positions 21504 | -6/Proximity Caves | Discovered new exit (range 8) 21523 | -6/Proximity Caves | Identified exit to Factory 21566 | -6/Proximity Caves | Entered Factory 21566 | -6/Factory | Accompanied by 1 ally 21566 | -6/Factory | Evolved 2 slots: Propulsion x1, Utility x1 21567 | -6/Factory | Identified exit to Lower Caves 21568 | -6/Factory | Loaded intel: 138 trap records 21569 | -6/Factory | Loaded intel: 26 terminal locations 21570 | -6/Factory | Loaded intel: 4 garrison access locations 22268 | -6/Factory | Incoming investigation squad redirected 22401 | -6/Factory | Fabricated Exp. Targeting Computer (x1) 22725 | -6/Factory | Sucked down chute 22725 | -6/Factory | Entered Waste 22730 | -6/Waste | 1 allies followed down the chute 22740 | -6/Waste | EMP discharged 22741 | -6/Waste | Spotted C-40 Crusher 22750 | -6/Waste | Allies destroyed C-40 Crusher 22766 | -6/Waste | Spotted C-40 Crusher 22779 | -6/Waste | Destroyed C-40 Crusher 22795 | -6/Waste | Spotted C-40 Crusher 22809 | -6/Waste | Allies destroyed C-40 Crusher 22840 | -6/Waste | EMP discharged 22840 | -6/Waste | System corruption reached 10% 22845 | -6/Waste | Spotted C-40 Crusher 22864 | -6/Waste | Spotted C-40 Crusher 22865 | -6/Waste | Destroyed C-40 Crusher 22872 | -6/Waste | Destroyed C-40 Crusher 22940 | -6/Waste | EMP discharged 22968 | -6/Waste | Discovered new exit (range 12) 22990 | -6/Waste | Identified exit to Factory 22993 | -6/Waste | Entered Factory 22993 | -6/Factory | Accompanied by 1 ally 23015 | -6/Factory | Build established: Scavenger-Gunner 24299 | -6/Factory | Build established: Gunner 24610 | -6/Factory | Discovered exit to Lower Caves (range 16) 24754 | -6/Factory | Entered Lower Caves 24754 | -6/Lower Caves | Accompanied by 1 ally 25118 | -6/Lower Caves | Learned Factory emergency access door positions 25156 | -6/Lower Caves | Identified exit to Lower Caves 25327 | -6/Lower Caves | Entered another Lower Caves area 25327 | -6/Lower Caves | Accompanied by 1 ally 25403 | -6/Lower Caves | Discovered new exit (range 11) 26057 | -6/Lower Caves | Discovered new exit (range 14) 26088 | -6/Lower Caves | Identified exit to Zion 26198 | -6/Lower Caves | Learned location of 1 exit from Factory 26408 | -6/Lower Caves | Entered Zion 26408 | -6/Zion | Accompanied by 1 ally 26494 | -6/Zion | System corruption cleaned by Quarantine Array 26724 | -6/Zion | Discovered new exit (range 14) 27199 | -6/Zion | Given the Hacking Drone Bay 27413 | -6/Zion | Found Prototype Processor 27413 | -6/Zion | Identified Exp. Core Analyzer 27424 | -6/Zion | Found Prototype Processor 27424 | -6/Zion | Identified Exp. Terrain Scan Processor 28232 | -6/Zion | Gained Derelict followers 28550 | -6/Zion | Identified exit to Proximity Caves 28553 | -6/Zion | Entered Proximity Caves 28553 | -5/Proximity Caves | Accompanied by 6 allies 29225 | -5/Proximity Caves | Spotted B-75 Beast 29235 | -5/Proximity Caves | Allies destroyed B-75 Beast 29459 | -5/Proximity Caves | Snuck into a huge 0b10 base via the rear entrance 29680 | -5/Proximity Caves | Discovered new exit (range 8) 30063 | -5/Proximity Caves | Build established: Commander-Gunner 30100 | -5/Proximity Caves | Fabricated Exp. Targeting Computer? 30362 | -5/Proximity Caves | Identified exit to Factory 30398 | -5/Proximity Caves | Entered Factory 30398 | -5/Factory | Evolved 2 slots: Utility x2 30399 | -5/Factory | Identified exit to Factory 30440 | -5/Factory | Garrison activated, responded to threat 30458 | -5/Factory | Build established: Scavenger-Gunner 30582 | -5/Factory | Repaired Hvy. Treads? 30627 | -5/Factory | Identified exit to Upper Caves 30650 | -5/Factory | Incoming investigation squad redirected 31161 | -5/Factory | Cargo convoy interrupted 31298 | -5/Factory | First assault squad dispatched 31324 | -5/Factory | Incoming assault squad redirected 31513 | -5/Factory | Lost 4 parts (1p3u) 32003 | -5/Factory | Entered Upper Caves 32143 | -5/Upper Caves | Attracted the attention of an 0b10 checkpoint 33004 | -5/Upper Caves | Discovered new exit (range 10) 33023 | -5/Upper Caves | Identified exit to Upper Caves 33025 | -5/Upper Caves | Entered another Upper Caves area 33055 | -5/Upper Caves | Discovered exit to Factory (range 10) 33166 | -5/Upper Caves | Spotted B-75 Beast 33298 | -5/Upper Caves | Destroyed B-75 Beast 33648 | -5/Upper Caves | Discovered new exit (range 15) 33672 | -5/Upper Caves | Identified exit to Zhirov 33711 | -5/Upper Caves | Entered Zhirov 33711 | -5/Zhirov | Discovered new exit (range 3) 33719 | -5/Zhirov | Identified exit to Proximity Caves 33744 | -5/Zhirov | Build established: Scavenger-Mutant 33757 | -5/Zhirov | Met Zhirov 33800 | -5/Zhirov | Learned location of Testing (-2) 33800 | -5/Zhirov | Learned location of Command (-1) 33821 | -5/Zhirov | Zhirov requested help retrieving the SGEMP Prototype 33858 | -5/Zhirov | Found Alien Artifact 33858 | -5/Zhirov | Identified Integrated Dissipator 33858 | -5/Zhirov | Installed Integrated Dissipator, increased core heat dissipation (+20) 33890 | -5/Zhirov | Found Alien Artifact 34061 | -5/Zhirov | Entered Proximity Caves 34061 | -4/Proximity Caves | Spotted B-86 Titan 34131 | -4/Proximity Caves | Destroyed B-86 Titan 34277 | -4/Proximity Caves | Attracted the attention of an 0b10 checkpoint 34310 | -4/Proximity Caves | Destroyed 7 combat bots 34336 | -4/Proximity Caves | Build established: Scavenger-Gunner 35251 | -4/Proximity Caves | Learned Research interactive machine intel 35322 | -4/Proximity Caves | Learned 4 Research zone layouts 35530 | -4/Proximity Caves | Discovered exit to Factory (range 10) 35556 | -4/Proximity Caves | Entered Factory 35556 | -4/Factory | Evolved 2 slots: Weapon x2 35856 | -4/Factory | Build established: Scavenger-Executioner 36006 | -4/Factory | Sucked down chute 36006 | -4/Factory | Entered Waste 36021 | -4/Waste | EMP discharged 36029 | -4/Waste | Spotted C-40 Crusher 36037 | -4/Waste | Destroyed C-40 Crusher 36043 | -4/Waste | Spotted C-40 Crusher 36050 | -4/Waste | Destroyed C-40 Crusher 36053 | -4/Waste | Spotted C-40 Crusher 36056 | -4/Waste | Spotted C-40 Crusher 36059 | -4/Waste | Destroyed C-40 Crusher 36066 | -4/Waste | Destroyed C-40 Crusher 36095 | -4/Waste | Spotted C-40 Crusher 36105 | -4/Waste | Destroyed C-40 Crusher 36121 | -4/Waste | EMP discharged 36121 | -4/Waste | System corruption reached 10% 36134 | -4/Waste | Spotted C-40 Crusher 36155 | -4/Waste | Destroyed C-40 Crusher 36221 | -4/Waste | EMP discharged 36243 | -4/Waste | Discovered new exit (range 12) 36265 | -4/Waste | Identified exit to Factory 36267 | -4/Waste | Entered Factory 36472 | -4/Factory | Identified Transdimensional Reconstructor 36472 | -4/Factory | Warped through subspace 36900 | -4/Factory | Repaired Imp. Weapon Cycler 37215 | -4/Factory | Spotted B-86 Titan 37229 | -4/Factory | Destroyed B-86 Titan 37415 | -4/Factory | Garrison activated, responded to threat 37538 | -4/Factory | Garrison activated, responded to threat 37566 | -4/Factory | Destroyed 7 combat bots 37652 | -4/Factory | Destroyed 7 combat bots 38226 | -4/Factory | Identified exit to Upper Caves 38226 | -4/Factory | Identified exit to Extension 38767 | -4/Factory | First assault squad dispatched 38917 | -4/Factory | Discovered new exit (range 7) 39203 | -4/Factory | Identified exit to Research 39294 | -4/Factory | Incoming assault squad redirected 39486 | -4/Factory | Entered Extension 39606 | -4/Extension | Rescued a captive Derelict 39607 | -4/Extension | Rescued a captive Derelict 39777 | -4/Extension | Energy Cycler disabled 39777 | -4/Extension | Rescued a captive Derelict 39778 | -4/Extension | Rescued a captive Derelict 39778 | -4/Extension | Rescued a captive Derelict 39778 | -4/Extension | Rescued a captive Derelict 39779 | -4/Extension | Rescued a captive Derelict 40737 | -4/Extension | Spotted B-86 Titan 40756 | -4/Extension | Destroyed B-86 Titan 40783 | -4/Extension | Discovered exit to Research (range 15) 40852 | -4/Extension | Extracted ID and sensor layout for unrecognized location from A7's data core 41330 | -4/Extension | Discovered exit to Research (range 10) 41332 | -4/Extension | Discovered new exit (range 6) 41336 | -4/Extension | Disrupted transfer network 41346 | -4/Extension | Disrupted transfer network 41372 | -4/Extension | Identified exit to Cetus 41380 | -4/Extension | Destroyed 8 combat bots 41388 | -4/Extension | Entered Cetus 41420 | -4/Cetus | Spotted Cetus Guard 41420 | -4/Cetus | Destroyed Cetus Guard 41423 | -4/Cetus | Destroyed Cetus Guard 41430 | -4/Cetus | Destroyed Cetus Guard 41436 | -4/Cetus | Destroyed Cetus Guard 41552 | -4/Cetus | Cetus Manufacturing Module disabled 41631 | -4/Cetus | Discovered new exit (range 16) 41679 | -4/Cetus | Destroyed Cetus Guard 41681 | -4/Cetus | Spotted Cetus Guard 41682 | -4/Cetus | Destroyed Cetus Guard 41685 | -4/Cetus | Destroyed Cetus Guard 41692 | -4/Cetus | Destroyed Cetus Guard 41729 | -4/Cetus | Discovered exit to Research (range 15) 41741 | -4/Cetus | Met Revision 17 41742 | -4/Cetus | Destroyed Revision 17 41975 | -4/Cetus | Identified exit to Archives 41983 | -4/Cetus | Entered Archives 42302 | -4/Archives | Discovered new exit (range 16) 42400 | -4/Archives | Discovered exit to Research (range 16) 42932 | -4/Archives | Identified exit to Hub_04(d) 42940 | -4/Archives | Entered Hub_04(d) 42944 | -4/Hub_04(d) | Discovered exit to Research (range 16) 43157 | -4/Hub_04(d) | Discovered exit to Research (range 16) 43603 | -4/Hub_04(d) | Network Hub disabled 43613 | -4/Hub_04(d) | Spotted Lightning 43617 | -4/Hub_04(d) | Entered Research 43617 | -3/Research | Evolved 2 slots: Power x2 43618 | -3/Research | Identified exit to Quarantine 43619 | -3/Research | Loaded intel: 45 interactive machine locations 43746 | -3/Research | Identified exit to Armory 43867 | -3/Research | First assault squad dispatched 43897 | -3/Research | Incoming assault squad redirected 44427 | -3/Research | Found Fusion Bomb Launcher 44819 | -3/Research | Found Unknown Protection 44819 | -3/Research | Identified Imp. Powered Armor 44846 | -3/Research | Entered Quarantine 44901 | -3/Quarantine | Cryocooling Duct disabled 44916 | -3/Quarantine | Ambient heat levels rising (+20) 44916 | -3/Quarantine | Non-combat units ordered to evacuate 45061 | -3/Quarantine | Found Alien Artifact 45061 | -3/Quarantine | Identified Core Reset Matrix 45061 | -3/Quarantine | Used Core Reset Matrix 45065 | -3/Quarantine | Detected hypermatrix surge 45065 | -3/Quarantine | Sensed 14 artifacts in vicinity 45327 | -3/Quarantine | Identified exit to Research 45379 | -3/Quarantine | Garrison activated, responded to threat 45460 | -3/Quarantine | Found Subatomic Replicator 45836 | -3/Quarantine | Found Core Stripper 46144 | -3/Quarantine | Spotted Fortress 46179 | -3/Quarantine | Destroyed Fortress 46199 | -3/Quarantine | Found Prototype Reactor 46199 | -3/Quarantine | Identified Vortex Chain Reactor 46203 | -3/Quarantine | Found Vortex Chain Reactor 46205 | -3/Quarantine | Lost 3 parts (1p1u1w) 46214 | -3/Quarantine | Found Prototype Device 46214 | -3/Quarantine | Identified Exp. Force Field 46476 | -3/Quarantine | Discovered new exit (range 5) 46485 | -3/Quarantine | Identified exit to Section 7 46492 | -3/Quarantine | Entered Section 7 46493 | -3/Section 7 | Sensed 25 artifacts in vicinity 46529 | -3/Section 7 | Found Integrated Mediator 46529 | -3/Section 7 | Installed Integrated Mediator, increased core attachment efficiency. 46576 | -3/Section 7 | Found Integrated Dissipator 46576 | -3/Section 7 | Installed Integrated Dissipator, increased core heat dissipation (+20) 46669 | -3/Section 7 | Found Integrated Reactor 46669 | -3/Section 7 | Installed Integrated Reactor, increased core energy generation (+10) 46868 | -3/Section 7 | Incoming investigation squad redirected 47052 | -3/Section 7 | Spotted S7 Guard 47078 | -3/Section 7 | Found Core Membrane 47078 | -3/Section 7 | Installed Core Membrane, gained immunity to corruption 47115 | -3/Section 7 | Destroyed S7 Guard 47132 | -3/Section 7 | Found Prototype Protection 47242 | -3/Section 7 | First assault squad dispatched 47586 | -3/Section 7 | Found Integrated Dissipator 47586 | -3/Section 7 | Installed Integrated Dissipator, increased core heat dissipation (+20) 47972 | -3/Section 7 | Found Integrated Dissipator 47973 | -3/Section 7 | Installed Integrated Dissipator, increased core heat dissipation (+20) 48090 | -3/Section 7 | Destroyed 7 combat bots 48206 | -3/Section 7 | Spotted Alpha 7 48221 | -3/Section 7 | Spotted Alpha 7 48252 | -3/Section 7 | Destroyed Alpha 7 48266 | -3/Section 7 | Incoming assault squad redirected 48268 | -3/Section 7 | Destroyed Alpha 7 48282 | -3/Section 7 | Lost 4 parts (4w) 48309 | -3/Section 7 | Destroyed 7 combat bots 48312 | -3/Section 7 | Found Exp. Targeting Computer 48327 | -3/Section 7 | Found Exp. Targeting Computer 48410 | -3/Section 7 | Spotted B-99 Colossus 48461 | -3/Section 7 | Destroyed B-99 Colossus 48475 | -3/Section 7 | Lost 7 parts (1p2n3u1w) 48507 | -3/Section 7 | Incoming assault squad redirected 48532 | -3/Section 7 | Build established: Alien-Executioner 48620 | -3/Section 7 | Found Integrated Reactor 48620 | -3/Section 7 | Installed Integrated Reactor, increased core energy generation (+10) 48625 | -3/Section 7 | Found Integrated Reactor 48625 | -3/Section 7 | Installed Integrated Reactor, increased core energy generation (+10) 48733 | -3/Section 7 | Found LRC Armor 48733 | -3/Section 7 | Installed LRC Armor, increased core integrity (+250) 48747 | -3/Section 7 | Found LRC Armor 48747 | -3/Section 7 | Installed LRC Armor, increased core integrity (+250) 48751 | -3/Section 7 | Found LRC Boosters 48751 | -3/Section 7 | Installed LRC Boosters, increased mass support (+10) 49152 | -3/Section 7 | Spotted Executioner 49154 | -3/Section 7 | Spotted Executioner 49158 | -3/Section 7 | Identified Hvy. Regenerative Plating 49186 | -3/Section 7 | Destroyed Executioner 49222 | -3/Section 7 | Lost 11 parts (2p1n3u5w) 49222 | -3/Section 7 | Destroyed Executioner 49241 | -3/Section 7 | Found Prototype Processor 49241 | -3/Section 7 | Identified Exp. Core Analyzer 49246 | -3/Section 7 | Found Prototype Device 49247 | -3/Section 7 | Identified Adv. Kinecellerator 49255 | -3/Section 7 | Found Exp. Core Analyzer 49262 | -3/Section 7 | Found Exp. Targeting Computer 49453 | -3/Section 7 | Build established: Alien-Mutant 49491 | -3/Section 7 | Found Sigix Sheargun 49499 | -3/Section 7 | Found Sigix Sheargun 49503 | -3/Section 7 | Found Sigix Sheargun 49511 | -3/Section 7 | Incoming assault squad redirected 49648 | -3/Section 7 | Core integrity fell below 50% 49705 | -3/Section 7 | Lost 8 parts (1p1n5u1w) 49706 | -3/Section 7 | Destroyed 15 combat bots 49758 | -3/Section 7 | Incoming assault squad redirected 49968 | -3/Section 7 | Incoming assault squad redirected 49985 | -3/Section 7 | Lost 6 parts (2p2u2w) 50020 | -3/Section 7 | Incoming assault squad redirected 50021 | -3/Section 7 | Found Exp. Core Analyzer 50038 | -3/Section 7 | Lost 4 parts (1p1n2w) 50116 | -3/Section 7 | Core integrity fell below 20% 50231 | -3/Section 7 | Integrated with Sigix Exoskeleton 50233 | -3/Section 7 | Used Subatomic Replicator to replicate Sigix Sheargun 50270 | -3/Section 7 | Incoming assault squad redirected 50275 | -3/Section 7 | Found Integrated Reactor 50275 | -3/Section 7 | Installed Integrated Reactor, increased core energy generation (+10) 50330 | -3/Section 7 | Discovered exit to Research (range 18) 50371 | -3/Section 7 | Entered Research 50371 | -2/Research | Evolved 2 slots: Utility x2 50375 | -2/Research | Identified exit to Testing 50376 | -2/Research | Emitted hypermatrix ping 50381 | -2/Research | Assembled emerged from beneath the floor 50413 | -2/Research | Discovered new exit (range 18) 50440 | -2/Research | Entered Testing 50482 | -2/Testing | Found Prototype Energy Cannon 50482 | -2/Testing | Identified Cld. Nova Cannon 50523 | -2/Testing | Build established: Alien-Sigix 50599 | -2/Testing | Discovered new exit (range 18) 50606 | -2/Testing | Spotted PY-NB3QE3E69X 50647 | -2/Testing | Destroyed PY-NB3QE3E69X 50759 | -2/Testing | Entered Access 50759 | -1/Access | Evolved 2 slots: Utility x1, Weapon x1 50764 | -1/Access | Emitted hypermatrix ping 50769 | -1/Access | Assembled emerged from beneath the floor 50849 | -1/Access | Assembled emerged from beneath the floor 50895 | -1/Access | Assembled emerged from beneath the floor 50960 | -1/Access | Discovered new exit (range 18) 50996 | -1/Access | Destroyed 8 combat bots 51003 | -1/Access | Assembled emerged from beneath the floor 51024 | -1/Access | Spotted Striker 51026 | -1/Access | Spotted Executioner 51072 | -1/Access | Scanned by Researcher 51073 | -1/Access | Spotted Investigator 51098 | -1/Access | Spotted B-99 Colossus 51101 | -1/Access | Spotted B-99 Colossus 51103 | -1/Access | Entered Command 51108 | -1/Command | Emitted hypermatrix ping 51113 | -1/Command | Assembled emerged from beneath the floor 51270 | -1/Command | Assembled emerged from beneath the floor 51320 | -1/Command | Spotted M Guard 51321 | -1/Command | Spotted M Guard 51322 | -1/Command | Spotted Combat Programmer 51334 | -1/Command | Spotted Combat Programmer 51337 | -1/Command | Destroyed Combat Programmer 51342 | -1/Command | High security lockdown imminent 51342 | -1/Command | Destroyed Combat Programmer 51357 | -1/Command | Spotted B-99 Colossus 51381 | -1/Command | Destroyed M Guard 51394 | -1/Command | Destroyed M Guard 51394 | -1/Command | All MAIN.C guards destroyed 51404 | -1/Command | Found Prototype Device 51404 | -1/Command | Identified AEGIS Remote Shield 51407 | -1/Command | Found Prototype Reactor 51407 | -1/Command | Identified Zero-point Reactor 51422 | -1/Command | High security lockdown engaged 51459 | -1/Command | Spotted Striker 51459 | -1/Command | Spotted Executioner 51461 | -1/Command | Sigix Exoskeleton integrity reduced to 80% 51469 | -1/Command | Spotted Executioner 51469 | -1/Command | Spotted Striker 51469 | -1/Command | Spotted Executioner 51471 | -1/Command | Destroyed Executioner 51483 | -1/Command | Destroyed Executioner 51488 | -1/Command | Destroyed Striker 51491 | -1/Command | Destroyed Striker 51491 | -1/Command | Destroyed Executioner 51493 | -1/Command | Spotted Executioner 51493 | -1/Command | Spotted Striker 51493 | -1/Command | Spotted Striker 51493 | -1/Command | Spotted Executioner 51499 | -1/Command | Destroyed Striker 51504 | -1/Command | Destroyed Striker 51504 | -1/Command | Destroyed Executioner 51509 | -1/Command | Destroyed Executioner 51530 | -1/Command | Destroyed 13 combat bots 51557 | -1/Command | Found Prototype Launcher 51558 | -1/Command | Identified Adv. Micro-nuke Launcher 51570 | -1/Command | Spotted Investigator 51570 | -1/Command | Destroyed Investigator 51581 | -1/Command | Spotted Striker 51583 | -1/Command | Spotted Executioner 51586 | -1/Command | Destroyed Striker 51588 | -1/Command | Destroyed Executioner 51603 | -1/Command | Found Exp. Core Analyzer 51605 | -1/Command | Found Exp. Targeting Computer 51610 | -1/Command | Destroyed 17 combat bots 51617 | -1/Command | Met MAIN.C 51621 | -1/Command | 0b10 Conduit disabled 51646 | -1/Command | MAIN.C's shell transforms into a squad of autonomous robots 51646 | -1/Command | Destroyed MAIN.C Shell 51646 | -1/Command | Spotted M Shell/Def 51646 | -1/Command | Spotted M Shell/Atk 51646 | -1/Command | Spotted M Shell/Def 51646 | -1/Command | Spotted M Shell/Atk 51646 | -1/Command | Spotted M Shell/Atk 51646 | -1/Command | Spotted M Shell/Def 51646 | -1/Command | Spotted M Shell/Atk 51646 | -1/Command | Spotted M Shell/Def 51648 | -1/Command | MAIN.C activated Command garrisons 51650 | -1/Command | Destroyed M Shell/Def 51656 | -1/Command | Sigix Exoskeleton integrity reduced to 60% 51657 | -1/Command | Destroyed M Shell/Def 51661 | -1/Command | Discovered new exit (range 37) 51661 | -1/Command | Discovered new exit (range 85) 51661 | -1/Command | Extracted map data and part IDs from MAIN.C's data core 51684 | -1/Command | Destroyed M Shell/Def 51687 | -1/Command | Sigix Exoskeleton integrity reduced to 40% 51704 | -1/Command | Core integrity fell below 50% 51708 | -1/Command | Destroyed M Shell/Atk 51716 | -1/Command | Destroyed M Shell/Atk 51723 | -1/Command | Destroyed MAIN.C 51736 | -1/Command | Destroyed M Shell/Atk 51738 | -1/Command | Destroyed M Shell/Atk 51745 | -1/Command | Discovered new exit (range 54) 51745 | -1/Command | Discovered new exit (range 68) 51745 | -1/Command | Extracted map data and part IDs from MAIN.C's data core 51746 | -1/Command | Found Zero-point Reactor 51751 | -1/Command | Found Exp. Weapon Cycler 51761 | -1/Command | Destroyed 10 combat bots 52212 | -1/Command | Found Null Cannon 52215 | -1/Command | Found Exp. Phase Shifter 52286 | -1/Command | Assembled emerged from beneath the floor 52322 | -1/Command | Assembled emerged from beneath the floor 52362 | -1/Command | Assembled emerged from beneath the floor 52487 | -1/Command | Found Adv. Particle Accelerator 52502 | -1/Command | Found Quantum Capacitor 52540 | -1/Command | Crushed by falling debris 52577 | *** | Heading to fleet! Last Messages --------------- 52432_ Attempting to rewire G-73 Enforcer. 52432_ G-73 Enforcer is broken beyond repair. 52454_ Quantum Shear penetrates Wall. 52459_ Extracted 2 energy. 52465_ Quantum Shear penetrates Wall. 52465_ Quantum Shear penetrates Earth. 52465_ Quantum Shear penetrates Wall. 52487_ Dropped Exp. Targeting Computer. 52487_ Acquired Adv. Particle Accelerator. 52488_ K-01 Serf collects debris. 52501_ Dropped Exp. Core Analyzer. 52502_ Dropped Exp. Energy Well. 52502_ Acquired Quantum Capacitor. 52503_ Extracted 2 energy. 52524_ Quantum Shear penetrates Wall. 52524_ Quantum Shear penetrates Earth. 52536_ Quantum Shear penetrates Wall. 52536_ Quantum Shear penetrates Earth. 52540_ The unstable cave ceiling collapses. 52540_ Crushed by falling debris. Map ----- +----------------------------------------------------+ | ## ## # ^ ####=== ######## | | ## ## = # ^ #### ######## | | ## ## % # #############+########" | | ## ## #% ############# ########"" | | ## ## # ############# ######## | | ## ########+###### #"""T"""##### ########" | | ##+###### #""" #""" """#####+######## % | | !!!# # #####"" | | * !! # # #####"" | | !! # ####" # ##### " | | = ## ###### ! + ##### | | ## # # "" !% "" # ##### | | ########## + # ! """" # ! #####" | | """"""#### # [# """ """" #= !*#####"! | | """#### # ! # "" "" #=! ##### ! | | "#### # *# #! ##### | | """#### !# # ##########![ | | """"""####=%###### % != !%= | | ########## =###### [*! [*!|[ = | | ###### =%= !=%=%! | | ####################### | | % = ### ############# | | * !%## ### ############# | | ![[ ^# =### ### ############### | | [[= #####! ### # ############### | | ![ [[ #####%*### X # ############### | | !! #####= ### # ############### | | [! ##### ######## ############### | | ##### ######## ############### | | ##### ######## ## ####### | | ! ##### ######## ## !####### | | ##### [######## ## * ####### | | #####*%######## ## ""##### | | ############## #######+######## ] ""##### | | # """ ##### # ""##### | | + "T" ##### + T##### | | # " " ##### ### ###"T###### ""##??? | | # ######+##### ###""####?# ""#???? | | # ## ## #######???# ""#???? | | # ## =## ######????# ###???? | | # ## """" ## ########### #?????? | | # ## """" ## #?#"""""""# #?????? | | # ## """" ## ###"""Y"""##+#####?????? | | ########### """" ## ## #????????? | | ##????????# ## ## #????????? | | ###???????# ## ## ""#????????? | | +#+#####?????##+####### # "" ""#????????? | | #??????# ## "" # """" ""#????????? | | #??????# ## T" / """" T#????????? | | #????###+##+#### # "" ""#????????? | +----------------------------------------------------+ Best States ------------- Heat Dissipation 192 Energy Generation 109 Energy Capacity 950 Matter Stores 300 Matter Capacity 300 Sight Range 16 Robot Scan Range 18 Terrain Scan Density 10 Armor Coverage 1250 Resistance: KI 50 Resistance: TH 50 Resistance: EX 50 Resistance: EM 50 Resistance: I 50 Resistance: S 50 Resistance: P 50 Weapon Shielding 90 Point Defense Rating 240 Weapon Cycling 30 Phase Shifting 20 Evasion (%) 89 Targeting Accuracy 24 Core Analysis 12 Recoil Reduction 3 Salvage Targeting 4 Offensive Hacking 14 Item Schematics ----------------- None Robot Schematics ------------------ None Fabricated ------------ Adv. Sensor Array | x1 | -7/Factory | Preloaded Adv. Medium Treads | x2 | -7/Factory | Preloaded Exp. Targeting Computer | x1 | -6/Factory Exp. Targeting Computer | x1 | -5/Proximity Caves Alien Tech Used ----------------- Integrated Dissipator Transdimensional Reconstructor Core Reset Matrix Core Stripper Integrated Mediator Integrated Reactor Core Membrane LRC Armor LRC Boosters Sigix Sheargun Sigix Exoskeleton Subatomic Replicator Achievements -------------- None Challenges ------------ None Game ------ Seed ModifiedGatlingSubcomponent Manual? 0 Play Time 05:05:31 Cumulative 1804.0 hours Start 2023.10.13 @ 16:22:20 End 2023.10.13 @ 22:34:07 Sessions 1 Manual Loads 0 Difficulty Rogue Special Mode None Game No. 632 Rogue 632 Adventurer 0 Explorer 0 Win Type 2 Total 141 Types 28/13/64/7/1/2/24/1/1 Lore% 96 Gallery% 96 Achievement% 88 Wizard Run 0 Options --------- ASCII 0 Keyboard 0 Movement Numpad Keybinds 0 Fullscreen 2 Font 18/SmallcapsGlow Map View 76x50 Tactical HUD 1 Map Filters NONE Filters NONE Steam 1 RUN: c8329cba-8332-400a-8487-d20a01f2f27d